BODY,BODY NAME,DATE,TRANSACTION NUMBER, AMOUNT ,SUPPLIER NAME,SUPPLIER ID,EXPENSE AREA,EXPENSE TYPE,EXPENSE CODE
http://statistics.data.gov.uk/id/local-authority/12UE,Huntingdonshire District Council,02/05/2013,549408,973.94,Lexisnexis,CR000801,Central Services M Us,Books & Publications,250
http://statistics.data.gov.uk/id/local-authority/12UE,Huntingdonshire District Council,02/05/2013,548984,10242.9,Cambridgeshire County Council,CR006678,Central Services M Us,Other Services,799
http://statistics.data.gov.uk/id/local-authority/12UE,Huntingdonshire District Council,02/05/2013,549406,10479,Cambridgeshire County Council,CR006678,Central Services M Us,Software,206
http://statistics.data.gov.uk/id/local-authority/12UE,Huntingdonshire District Council,30/05/2013,549823,600,Mr Neil Ashley,CR409695,Chief Executive & Comt,Consultants,711
http://statistics.data.gov.uk/id/local-authority/12UE,Huntingdonshire District Council,02/05/2013,548483,28750,Rural Cambs Citzens Advice Bureau,CR455454,Miscellaneous Grants,Grants (Paid Out),800
http://statistics.data.gov.uk/id/local-authority/12UE,Huntingdonshire District Council,16/05/2013,549834,776.98,Abbey College,CR478009,One Leisure Ramsey,Water,432
http://statistics.data.gov.uk/id/local-authority/12UE,Huntingdonshire District Council,23/05/2013,127215,2430,Elephant & Castle Freehouse & Motel,CR401969,Accommodation For Homeless,Bed & Breakfast Payment,818
http://statistics.data.gov.uk/id/local-authority/12UE,Huntingdonshire District Council,09/05/2013,126221,2160,Elephant & Castle Freehouse & Motel,CR401969,Accommodation For Homeless,Bed & Breakfast Payment,818
http://statistics.data.gov.uk/id/local-authority/12UE,Huntingdonshire District Council,02/05/2013,125769,2052,Elephant & Castle Freehouse & Motel,CR401969,Accommodation For Homeless,Bed & Breakfast Payment,818
http://statistics.data.gov.uk/id/local-authority/12UE,Huntingdonshire District Council,30/05/2013,127704,1998,Elephant & Castle Freehouse & Motel,CR401969,Accommodation For Homeless,Bed & Breakfast Payment,818
http://statistics.data.gov.uk/id/local-authority/12UE,Huntingdonshire District Council,16/05/2013,126801,1728,Elephant & Castle Freehouse & Motel,CR401969,Accommodation For Homeless,Bed & Breakfast Payment,818
http://statistics.data.gov.uk/id/local-authority/12UE,Huntingdonshire District Council,02/05/2013,123934,1260,The Station Hotel,CR453752,Accommodation For Homeless,Bed & Breakfast Payment,818
http://statistics.data.gov.uk/id/local-authority/12UE,Huntingdonshire District Council,23/05/2013,126220,675,The Station Hotel,CR453752,Accommodation For Homeless,Bed & Breakfast Payment,818
http://statistics.data.gov.uk/id/local-authority/12UE,Huntingdonshire District Council,09/05/2013,124978,630,The Station Hotel,CR453752,Accommodation For Homeless,Bed & Breakfast Payment,818
http://statistics.data.gov.uk/id/local-authority/12UE,Huntingdonshire District Council,09/05/2013,124982,630,The Station Hotel,CR453752,Accommodation For Homeless,Bed & Breakfast Payment,818
http://statistics.data.gov.uk/id/local-authority/12UE,Huntingdonshire District Council,30/05/2013,126800,630,The Station Hotel,CR453752,Accommodation For Homeless,Bed & Breakfast Payment,818
http://statistics.data.gov.uk/id/local-authority/12UE,Huntingdonshire District Council,30/05/2013,126817,8801.87,King Street Housing Society,CR409301,Accommodation For Homeless,Management Charge,733
http://statistics.data.gov.uk/id/local-authority/12UE,Huntingdonshire District Council,09/05/2013,125897,1287.55,King Street Housing Society,CR409301,Accommodation For Homeless,Management Charge,733
http://statistics.data.gov.uk/id/local-authority/12UE,Huntingdonshire District Council,23/05/2013,126262,3456,Air Monitors Ltd,CR480691,Air Quality,Equipment Maintenance,511
http://statistics.data.gov.uk/id/local-authority/12UE,Huntingdonshire District Council,09/05/2013,124845,2412,Environmental Scientifics Group Ltd,CR416941,Air Quality,Equipment Purchases,500
http://statistics.data.gov.uk/id/local-authority/12UE,Huntingdonshire District Council,23/05/2013,126262,576,Air Monitors Ltd,CR480691,Air Quality,Software,206
http://statistics.data.gov.uk/id/local-authority/12UE,Huntingdonshire District Council,16/05/2013,125981,135.48,Vodafone Limited,CR029120,Animal Welfare,Mobile Telephones & Radios,241
http://statistics.data.gov.uk/id/local-authority/12UE,Huntingdonshire District Council,02/05/2013,124906,606,G Ferrara Ltd,CR478949,Bus Shelters,Sitework,359
http://statistics.data.gov.uk/id/local-authority/12UE,Huntingdonshire District Council,09/05/2013,125976,606,G Ferrara Ltd,CR478949,Bus Shelters,Sitework,359
http://statistics.data.gov.uk/id/local-authority/12UE,Huntingdonshire District Council,16/05/2013,126805,695.04,Primesight  Ltd,CR132710,Bus Shelters,Sitework,359
http://statistics.data.gov.uk/id/local-authority/12UE,Huntingdonshire District Council,09/05/2013,126167,1458.64,Swalec,CR407130,Bus Stations,Electricity,420
http://statistics.data.gov.uk/id/local-authority/12UE,Huntingdonshire District Council,16/05/2013,125981,39.78,Vodafone Limited,CR029120,Business Analysis,Mobile Telephones & Radios,241
http://statistics.data.gov.uk/id/local-authority/12UE,Huntingdonshire District Council,02/05/2013,124936,2807.81,Quadrant Security Group,CR027775,C C T V,Equipment Maintenance,511
http://statistics.data.gov.uk/id/local-authority/12UE,Huntingdonshire District Council,30/05/2013,127155,2807.81,Quadrant Security Group,CR027775,C C T V,Equipment Maintenance,511
http://statistics.data.gov.uk/id/local-authority/12UE,Huntingdonshire District Council,16/05/2013,125981,69.01,Vodafone Limited,CR029120,C C T V,Mobile Telephones & Radios,241
http://statistics.data.gov.uk/id/local-authority/12UE,Huntingdonshire District Council,02/05/2013,125538,151.96,Elecheck (Est) Ltd,CR480242,Call Centre,Electrical Testing,383
http://statistics.data.gov.uk/id/local-authority/12UE,Huntingdonshire District Council,16/05/2013,125981,11.71,Vodafone Limited,CR029120,Call Centre,Mobile Telephones & Radios,241
http://statistics.data.gov.uk/id/local-authority/12UE,Huntingdonshire District Council,23/05/2013,125798,1228.01,B. S. Graves Electrical Ltd,CR000363,Car Park Assets,Gen Building Mtce - Responsive,303
http://statistics.data.gov.uk/id/local-authority/12UE,Huntingdonshire District Council,23/05/2013,125800,5106.65,Adc East Anglia Limited,CR410308,Car Park Assets,Sitework,359
http://statistics.data.gov.uk/id/local-authority/12UE,Huntingdonshire District Council,02/05/2013,123927,2741.27,J Breheny Contractors Ltd,CR000314,Car Park Assets,Sitework,359
http://statistics.data.gov.uk/id/local-authority/12UE,Huntingdonshire District Council,30/05/2013,126397,2328,K & M Lighting Services Ltd,CR455166,Car Park Assets,Sitework,359
http://statistics.data.gov.uk/id/local-authority/12UE,Huntingdonshire District Council,30/05/2013,127205,4763.96,G4s Cashservices Uk Ltd,CR407133,Car Park Management,Cash Collection,702
http://statistics.data.gov.uk/id/local-authority/12UE,Huntingdonshire District Council,02/05/2013,124949,4656.76,G4s Cashservices Uk Ltd,CR407133,Car Park Management,Cash Collection,702
http://statistics.data.gov.uk/id/local-authority/12UE,Huntingdonshire District Council,02/05/2013,124950,832.68,G4s Cashservices Uk Ltd,CR407133,Car Park Management,Cash Collection,702
http://statistics.data.gov.uk/id/local-authority/12UE,Huntingdonshire District Council,09/05/2013,125534,23.44,Elecheck (Est) Ltd,CR480242,Car Park Management,Electrical Testing,383
http://statistics.data.gov.uk/id/local-authority/12UE,Huntingdonshire District Council,02/05/2013,125538,11.34,Elecheck (Est) Ltd,CR480242,Car Park Management,Electrical Testing,383
http://statistics.data.gov.uk/id/local-authority/12UE,Huntingdonshire District Council,16/05/2013,126583,1087.26,Swalec,CR407130,Car Park Management,Electricity,420
http://statistics.data.gov.uk/id/local-authority/12UE,Huntingdonshire District Council,16/05/2013,126408,557.72,Swalec,CR407130,Car Park Management,Electricity,420
http://statistics.data.gov.uk/id/local-authority/12UE,Huntingdonshire District Council,16/05/2013,126922,-1087.26,Swalec,CR407130,Car Park Management,Electricity,420
http://statistics.data.gov.uk/id/local-authority/12UE,Huntingdonshire District Council,02/05/2013,124852,3908.89,Cale Briparc Ltd,CR401137,Car Park Management,Equipment Maintenance,511
http://statistics.data.gov.uk/id/local-authority/12UE,Huntingdonshire District Council,30/05/2013,126826,3908.89,Cale Briparc Ltd,CR401137,Car Park Management,Equipment Maintenance,511
http://statistics.data.gov.uk/id/local-authority/12UE,Huntingdonshire District Council,16/05/2013,125981,1040.89,Vodafone Limited,CR029120,Car Park Management,Mobile Telephones & Radios,241
http://statistics.data.gov.uk/id/local-authority/12UE,Huntingdonshire District Council,30/05/2013,126398,5789.8,Cale Briparc Ltd,CR401137,Car Park Management,Sitework,359
http://statistics.data.gov.uk/id/local-authority/12UE,Huntingdonshire District Council,23/05/2013,125863,12119.54,Uk Power Networks,CR403938,Car Parks Capital,Sitework,359
http://statistics.data.gov.uk/id/local-authority/12UE,Huntingdonshire District Council,23/05/2013,125864,2843.27,Uk Power Networks,CR403938,Car Parks Capital,Sitework,359
http://statistics.data.gov.uk/id/local-authority/12UE,Huntingdonshire District Council,03/05/2013,126153,8799.01,Virgin Media Limited,CR482525,Car Parks Capital,Sitework,359
http://statistics.data.gov.uk/id/local-authority/12UE,Huntingdonshire District Council,16/05/2013,126869,1759.8,Virgin Media Limited,CR482525,Car Parks Capital,Sitework,359
http://statistics.data.gov.uk/id/local-authority/12UE,Huntingdonshire District Council,23/05/2013,125539,2790,Thomson Reuters,CR412314,Central Services M Us,Books & Publications,250
http://statistics.data.gov.uk/id/local-authority/12UE,Huntingdonshire District Council,16/05/2013,125981,176.3,Vodafone Limited,CR029120,Central Services M Us,Mobile Telephones & Radios,241
http://statistics.data.gov.uk/id/local-authority/12UE,Huntingdonshire District Council,30/05/2013,126314,516,Lgg Ltd,CR401720,Central Services M Us,Training - Other,136
http://statistics.data.gov.uk/id/local-authority/12UE,Huntingdonshire District Council,16/05/2013,125266,1083.83,Sharpe Pritchard,CR480887,Chief Executive & Comt,Consultants,711
http://statistics.data.gov.uk/id/local-authority/12UE,Huntingdonshire District Council,02/05/2013,123929,811.25,J Breheny Contractors Ltd,CR000314,Chief Executive & Comt,Sitework,359
http://statistics.data.gov.uk/id/local-authority/12UE,Huntingdonshire District Council,16/05/2013,122903,2735,Idox Information Solutions Ltd,CR481134,Chief Executive & Comt,Software,206
http://statistics.data.gov.uk/id/local-authority/12UE,Huntingdonshire District Council,30/05/2013,127590,7185.85,Computershare Vouchers Ltd,CR412205,Child Care Vouchers - Payroll,Deductions Paid To Third Party,26
http://statistics.data.gov.uk/id/local-authority/12UE,Huntingdonshire District Council,02/05/2013,125772,7036.84,Computershare Vouchers Ltd,CR412205,Child Care Vouchers - Payroll,Deductions Paid To Third Party,26
http://statistics.data.gov.uk/id/local-authority/12UE,Huntingdonshire District Council,16/05/2013,126631,560.4,Jba Construction & Management Services,CR416716,Commercial Properties,Gen Building Mtce - Planned,304
http://statistics.data.gov.uk/id/local-authority/12UE,Huntingdonshire District Council,16/05/2013,125098,1320,Cambridge Flat Roofing,CR479717,Commercial Properties,Gen Building Mtce - Responsive,303
http://statistics.data.gov.uk/id/local-authority/12UE,Huntingdonshire District Council,01/05/2013,125945,4800,Cambridgeshire County Council,CR416949,Commercial Properties,Legal Fees,729
http://statistics.data.gov.uk/id/local-authority/12UE,Huntingdonshire District Council,02/05/2013,123946,2048.98,J Breheny Contractors Ltd,CR000314,Commercial Properties,Sitework,359
http://statistics.data.gov.uk/id/local-authority/12UE,Huntingdonshire District Council,16/05/2013,125981,68.51,Vodafone Limited,CR029120,Community Safety,Mobile Telephones & Radios,241
http://statistics.data.gov.uk/id/local-authority/12UE,Huntingdonshire District Council,16/05/2013,126629,600,Stanground Academy,CR455223,Community Services M Us,Materials,550
http://statistics.data.gov.uk/id/local-authority/12UE,Huntingdonshire District Council,16/05/2013,125981,511.5,Vodafone Limited,CR029120,Community Services M Us,Mobile Telephones & Radios,241
http://statistics.data.gov.uk/id/local-authority/12UE,Huntingdonshire District Council,02/05/2013,123916,1340,Sts Leisure Group,CR415607,Community Services M Us,Training - Operational,131
http://statistics.data.gov.uk/id/local-authority/12UE,Huntingdonshire District Council,09/05/2013,124919,840,Ricardo-Aea Ltd,CR403952,Contaminated Land,Corporate Subscriptions,754
http://statistics.data.gov.uk/id/local-authority/12UE,Huntingdonshire District Council,30/05/2013,126566,1308,British Geological Survey,CR401267,Contaminated Land,Software,206
http://statistics.data.gov.uk/id/local-authority/12UE,Huntingdonshire District Council,23/05/2013,126177,2340,Reed Business Information Ltd,CR401020,Corporate Office Mus,Advertising - Statutory Notice,257
http://statistics.data.gov.uk/id/local-authority/12UE,Huntingdonshire District Council,16/05/2013,125974,594,Local Government Association,CR400598,Corporate Office Mus,Conferences,137
http://statistics.data.gov.uk/id/local-authority/12UE,Huntingdonshire District Council,16/05/2013,125981,423.83,Vodafone Limited,CR029120,Corporate Office Mus,Mobile Telephones & Radios,241
http://statistics.data.gov.uk/id/local-authority/12UE,Huntingdonshire District Council,23/05/2013,127132,3060,Cfl Estate Services,CR455208,Corporate Office Mus,Property Management,781
http://statistics.data.gov.uk/id/local-authority/12UE,Huntingdonshire District Council,30/05/2013,126176,2088,Cfl Estate Services,CR455208,Corporate Office Mus,Property Management,781
http://statistics.data.gov.uk/id/local-authority/12UE,Huntingdonshire District Council,09/05/2013,124957,1261.02,Newlyn Plc,CR409114,Council Tax,Bailiffs,703
http://statistics.data.gov.uk/id/local-authority/12UE,Huntingdonshire District Council,23/05/2013,125741,1138.68,Newlyn Plc,CR409114,Council Tax,Bailiffs,703
http://statistics.data.gov.uk/id/local-authority/12UE,Huntingdonshire District Council,02/05/2013,124475,996.64,Newlyn Plc,CR409114,Council Tax,Bailiffs,703
http://statistics.data.gov.uk/id/local-authority/12UE,Huntingdonshire District Council,02/05/2013,124477,986.07,Newlyn Plc,CR409114,Council Tax,Bailiffs,703
http://statistics.data.gov.uk/id/local-authority/12UE,Huntingdonshire District Council,30/05/2013,126139,958.11,Newlyn Plc,CR409114,Council Tax,Bailiffs,703
http://statistics.data.gov.uk/id/local-authority/12UE,Huntingdonshire District Council,16/05/2013,125290,612.12,Newlyn Plc,CR409114,Council Tax,Bailiffs,703
http://statistics.data.gov.uk/id/local-authority/12UE,Huntingdonshire District Council,16/05/2013,126759,552.88,Booker Cash And Carry,CR027611,Countryside,Catering Materials,559
http://statistics.data.gov.uk/id/local-authority/12UE,Huntingdonshire District Council,09/05/2013,124901,610.52,King Bros,CR411339,Countryside,Catering Materials,559
http://statistics.data.gov.uk/id/local-authority/12UE,Huntingdonshire District Council,23/05/2013,126764,548.83,King Bros,CR411339,Countryside,Catering Materials,559
http://statistics.data.gov.uk/id/local-authority/12UE,Huntingdonshire District Council,30/05/2013,126942,118.82,Shell Uk Ltd,CR028192,Countryside,Diesel,615
http://statistics.data.gov.uk/id/local-authority/12UE,Huntingdonshire District Council,02/05/2013,125538,254.09,Elecheck (Est) Ltd,CR480242,Countryside,Electrical Testing,383
http://statistics.data.gov.uk/id/local-authority/12UE,Huntingdonshire District Council,09/05/2013,125372,940.01,Arthur Ibbett Ltd,CR000430,Countryside,Equipment Purchases,500
http://statistics.data.gov.uk/id/local-authority/12UE,Huntingdonshire District Council,30/05/2013,127700,958,Decor 8 (Huntingdon) Ltd,CR455746,Countryside,Gen Building Mtce - Planned,304
http://statistics.data.gov.uk/id/local-authority/12UE,Huntingdonshire District Council,16/05/2013,126759,5.94,Booker Cash And Carry,CR027611,Countryside,Materials For Resale,570
http://statistics.data.gov.uk/id/local-authority/12UE,Huntingdonshire District Council,16/05/2013,125981,299.59,Vodafone Limited,CR029120,Countryside,Mobile Telephones & Radios,241
http://statistics.data.gov.uk/id/local-authority/12UE,Huntingdonshire District Council,09/05/2013,125265,586.6,Dell Computer Corporation,CR408320,Countryside,Other I T Hardware,203
http://statistics.data.gov.uk/id/local-authority/12UE,Huntingdonshire District Council,30/05/2013,126942,149.64,Shell Uk Ltd,CR028192,Countryside,Petrol,614
http://statistics.data.gov.uk/id/local-authority/12UE,Huntingdonshire District Council,23/05/2013,127270,865.5,Metro Printing And Embroidery,CR400793,Countryside,Protective Clothing & Uniforms,163
http://statistics.data.gov.uk/id/local-authority/12UE,Huntingdonshire District Council,16/05/2013,126834,550,Doubledays Waste Disposal,CR455723,Countryside,Sewerage,433
http://statistics.data.gov.uk/id/local-authority/12UE,Huntingdonshire District Council,30/05/2013,127262,564,Sps Pumps & Engineering Ltd,CR401392,Countryside,Sewerage,433
http://statistics.data.gov.uk/id/local-authority/12UE,Huntingdonshire District Council,02/05/2013,124948,372.06,G4s Cashservices Uk Ltd,CR407133,Customer Service Centres,Cash Collection,702
http://statistics.data.gov.uk/id/local-authority/12UE,Huntingdonshire District Council,30/05/2013,127207,372.06,G4s Cashservices Uk Ltd,CR407133,Customer Service Centres,Cash Collection,702
http://statistics.data.gov.uk/id/local-authority/12UE,Huntingdonshire District Council,09/05/2013,125534,37.4,Elecheck (Est) Ltd,CR480242,Customer Service Centres,Electrical Testing,383
http://statistics.data.gov.uk/id/local-authority/12UE,Huntingdonshire District Council,02/05/2013,125538,133.42,Elecheck (Est) Ltd,CR480242,Customer Service Centres,Electrical Testing,383
http://statistics.data.gov.uk/id/local-authority/12UE,Huntingdonshire District Council,09/05/2013,125949,530.46,Twofold Consulting,CR453929,Customer Service Centres,Equipment Maintenance,511
http://statistics.data.gov.uk/id/local-authority/12UE,Huntingdonshire District Council,09/05/2013,125950,530.46,Twofold Consulting,CR453929,Customer Service Centres,Equipment Maintenance,511
http://statistics.data.gov.uk/id/local-authority/12UE,Huntingdonshire District Council,16/05/2013,125981,75.68,Vodafone Limited,CR029120,Customer Service Centres,Mobile Telephones & Radios,241
http://statistics.data.gov.uk/id/local-authority/12UE,Huntingdonshire District Council,02/05/2013,124022,12038.72,Capita Business Services Ltd,CR410639,Customer Service Centres,Software,206
http://statistics.data.gov.uk/id/local-authority/12UE,Huntingdonshire District Council,02/05/2013,124023,3120,Capita Business Services Ltd,CR410639,Customer Service Centres,Software,206
http://statistics.data.gov.uk/id/local-authority/12UE,Huntingdonshire District Council,23/05/2013,127359,540,Reading Agricultural Consultants,CR404991,Dc Application Processing,Consultants,711
http://statistics.data.gov.uk/id/local-authority/12UE,Huntingdonshire District Council,02/05/2013,125809,3000,Paul Cooper,CR455699,Dc Application Processing,Legal Fees,729
http://statistics.data.gov.uk/id/local-authority/12UE,Huntingdonshire District Council,16/05/2013,125981,68.4,Vodafone Limited,CR029120,Development Team,Mobile Telephones & Radios,241
http://statistics.data.gov.uk/id/local-authority/12UE,Huntingdonshire District Council,30/05/2013,126871,1072.51,Kingston Communications,CR417066,Development Team,Software,206
http://statistics.data.gov.uk/id/local-authority/12UE,Huntingdonshire District Council,02/05/2013,124863,1035.17,Canon Uk Ltd,CR409013,Document Centre,Equipment Maintenance,511
http://statistics.data.gov.uk/id/local-authority/12UE,Huntingdonshire District Council,30/05/2013,126405,1035.17,Canon Uk Ltd,CR409013,Document Centre,Equipment Maintenance,511
http://statistics.data.gov.uk/id/local-authority/12UE,Huntingdonshire District Council,30/05/2013,126149,2636.41,Konica Minolta Business Solutions East Ltd,CR478866,Document Centre,Equipment Maintenance,511
http://statistics.data.gov.uk/id/local-authority/12UE,Huntingdonshire District Council,16/05/2013,125981,7.5,Vodafone Limited,CR029120,Document Centre,Mobile Telephones & Radios,241
http://statistics.data.gov.uk/id/local-authority/12UE,Huntingdonshire District Council,16/05/2013,125758,819.6,Xerox Office Supplies,CR481184,Document Centre,Paper,562
http://statistics.data.gov.uk/id/local-authority/12UE,Huntingdonshire District Council,23/05/2013,125776,523.21,Xerox Office Supplies,CR481184,Document Centre,Paper,562
http://statistics.data.gov.uk/id/local-authority/12UE,Huntingdonshire District Council,23/05/2013,126146,969.36,Royal Mail,CR027083,Document Centre,Postage,231
http://statistics.data.gov.uk/id/local-authority/12UE,Huntingdonshire District Council,30/05/2013,126630,273.98,Royal Mail,CR027083,Document Centre,Postage,231
http://statistics.data.gov.uk/id/local-authority/12UE,Huntingdonshire District Council,16/05/2013,125757,2472.82,Royal Mail,CR027083,Document Centre,Postage,231
http://statistics.data.gov.uk/id/local-authority/12UE,Huntingdonshire District Council,30/05/2013,126642,1042.77,T N T Post London Ltd,CR479965,Document Centre,Postage,231
http://statistics.data.gov.uk/id/local-authority/12UE,Huntingdonshire District Council,02/05/2013,124366,1143.47,T N T Post London Ltd,CR479965,Document Centre,Postage,231
http://statistics.data.gov.uk/id/local-authority/12UE,Huntingdonshire District Council,23/05/2013,125775,920.2,T N T Post London Ltd,CR479965,Document Centre,Postage,231
http://statistics.data.gov.uk/id/local-authority/12UE,Huntingdonshire District Council,02/05/2013,125018,3009.73,Staffline Group,CR416827,Domestic Refuse,Hired Staff,100
http://statistics.data.gov.uk/id/local-authority/12UE,Huntingdonshire District Council,23/05/2013,127168,2818.07,Staffline Group,CR416827,Domestic Refuse,Hired Staff,100
http://statistics.data.gov.uk/id/local-authority/12UE,Huntingdonshire District Council,16/05/2013,125849,2599.01,Staffline Group,CR416827,Domestic Refuse,Hired Staff,100
http://statistics.data.gov.uk/id/local-authority/12UE,Huntingdonshire District Council,16/05/2013,125852,2227.63,Staffline Group,CR416827,Domestic Refuse,Hired Staff,100
http://statistics.data.gov.uk/id/local-authority/12UE,Huntingdonshire District Council,30/05/2013,127291,2141.53,Staffline Group,CR416827,Domestic Refuse,Hired Staff,100
http://statistics.data.gov.uk/id/local-authority/12UE,Huntingdonshire District Council,02/05/2013,125023,1898.89,Staffline Group,CR416827,Domestic Refuse,Hired Staff,100
http://statistics.data.gov.uk/id/local-authority/12UE,Huntingdonshire District Council,23/05/2013,127173,1898.06,Staffline Group,CR416827,Domestic Refuse,Hired Staff,100
http://statistics.data.gov.uk/id/local-authority/12UE,Huntingdonshire District Council,09/05/2013,125785,1850.75,Staffline Group,CR416827,Domestic Refuse,Hired Staff,100
http://statistics.data.gov.uk/id/local-authority/12UE,Huntingdonshire District Council,30/05/2013,127292,1732,Staffline Group,CR416827,Domestic Refuse,Hired Staff,100
http://statistics.data.gov.uk/id/local-authority/12UE,Huntingdonshire District Council,09/05/2013,125781,1721.41,Staffline Group,CR416827,Domestic Refuse,Hired Staff,100
http://statistics.data.gov.uk/id/local-authority/12UE,Huntingdonshire District Council,23/05/2013,127160,1110,Pristine Condition,CR482653,Domestic Refuse,Training - Operational,131
http://statistics.data.gov.uk/id/local-authority/12UE,Huntingdonshire District Council,30/05/2013,126375,4167.55,Bandvulc Tyres Ltd,CR406810,Domestic Refuse,Tyres,630
http://statistics.data.gov.uk/id/local-authority/12UE,Huntingdonshire District Council,16/05/2013,126793,2508,V.O.S.A,CR409350,Domestic Refuse,Vehicle Mot,622
http://statistics.data.gov.uk/id/local-authority/12UE,Huntingdonshire District Council,30/05/2013,126599,1425,Dennis Eagle Ltd,CR000200,Domestic Refuse,Vehicle Parts & Fittings,625
http://statistics.data.gov.uk/id/local-authority/12UE,Huntingdonshire District Council,09/05/2013,125881,801.43,Dennis Eagle Ltd,CR000200,Domestic Refuse,Vehicle Parts & Fittings,625
http://statistics.data.gov.uk/id/local-authority/12UE,Huntingdonshire District Council,02/05/2013,125787,1558.39,Terberg Matec Uk Ltd,CR402183,Domestic Refuse,Vehicle Parts & Fittings,625
http://statistics.data.gov.uk/id/local-authority/12UE,Huntingdonshire District Council,30/05/2013,126369,30558.28,Dennis Eagle Ltd,CR000200,Domestic Refuse,Vehicle Refurbishment,624
http://statistics.data.gov.uk/id/local-authority/12UE,Huntingdonshire District Council,16/05/2013,126348,1356.6,Ecocleen Services Limited,CR406985,E F H And Depots,Building Cleaning Internal,440
http://statistics.data.gov.uk/id/local-authority/12UE,Huntingdonshire District Council,09/05/2013,125534,1245.06,Elecheck (Est) Ltd,CR480242,E F H And Depots,Electrical Testing,383
http://statistics.data.gov.uk/id/local-authority/12UE,Huntingdonshire District Council,23/05/2013,127338,2871.26,E-On Energy,CR416430,E F H And Depots,Electricity,420
http://statistics.data.gov.uk/id/local-authority/12UE,Huntingdonshire District Council,09/05/2013,126363,2672.82,E-On Energy,CR416430,E F H And Depots,Electricity,420
http://statistics.data.gov.uk/id/local-authority/12UE,Huntingdonshire District Council,23/05/2013,127345,-2672.82,E-On Energy,CR416430,E F H And Depots,Electricity,420
http://statistics.data.gov.uk/id/local-authority/12UE,Huntingdonshire District Council,16/05/2013,126613,1036.85,E-On Energy,CR416430,E F H And Depots,Gas,421
http://statistics.data.gov.uk/id/local-authority/12UE,Huntingdonshire District Council,30/05/2013,125906,816,Cambridge Door Services,CR415341,E F H And Depots,Gen Building Mtce - Planned,304
http://statistics.data.gov.uk/id/local-authority/12UE,Huntingdonshire District Council,30/05/2013,127234,741.76,Warboys Services Ltd,CR000841,E F H And Depots,Gen Building Mtce - Responsive,303
http://statistics.data.gov.uk/id/local-authority/12UE,Huntingdonshire District Council,23/05/2013,126214,4583.04,Kershaw Mechanical Services Ltd,CR480268,E F H And Depots,Plant & Equipment Maintenance,380
http://statistics.data.gov.uk/id/local-authority/12UE,Huntingdonshire District Council,23/05/2013,126146,8315.56,Royal Mail,CR027083,Elections,Postage,231
http://statistics.data.gov.uk/id/local-authority/12UE,Huntingdonshire District Council,30/05/2013,126630,3640.32,Royal Mail,CR027083,Elections,Postage,231
http://statistics.data.gov.uk/id/local-authority/12UE,Huntingdonshire District Council,23/05/2013,126330,96,Sci Print Limited,CR416581,Elections,Postage,231
http://statistics.data.gov.uk/id/local-authority/12UE,Huntingdonshire District Council,23/05/2013,126330,9771.41,Sci Print Limited,CR416581,Elections,Stationery,225
http://statistics.data.gov.uk/id/local-authority/12UE,Huntingdonshire District Council,23/05/2013,126324,9474,Victoirepress,CR404724,Elections,Stationery,225
http://statistics.data.gov.uk/id/local-authority/12UE,Huntingdonshire District Council,30/05/2013,126642,123.73,T N T Post London Ltd,CR479965,Electoral Registration,Postage,231
http://statistics.data.gov.uk/id/local-authority/12UE,Huntingdonshire District Council,02/05/2013,124366,29.03,T N T Post London Ltd,CR479965,Electoral Registration,Postage,231
http://statistics.data.gov.uk/id/local-authority/12UE,Huntingdonshire District Council,23/05/2013,125775,48.41,T N T Post London Ltd,CR479965,Electoral Registration,Postage,231
http://statistics.data.gov.uk/id/local-authority/12UE,Huntingdonshire District Council,30/05/2013,127620,30941.06,Environmental Energies Ltd,CR455214,Environment Equipment Capital,Equipment Purchases,500
http://statistics.data.gov.uk/id/local-authority/12UE,Huntingdonshire District Council,16/05/2013,125300,514.8,Tsunami Axis Ltd,CR417041,Environmental Health M Us,Equipment Purchases,500
http://statistics.data.gov.uk/id/local-authority/12UE,Huntingdonshire District Council,16/05/2013,125981,1216.59,Vodafone Limited,CR029120,Environmental Health M Us,Mobile Telephones & Radios,241
http://statistics.data.gov.uk/id/local-authority/12UE,Huntingdonshire District Council,16/05/2013,125981,851.78,Vodafone Limited,CR029120,Environmental Management,Mobile Telephones & Radios,241
http://statistics.data.gov.uk/id/local-authority/12UE,Huntingdonshire District Council,16/05/2013,122903,15604.16,Idox Information Solutions Ltd,CR481134,Environmental Management,Software,206
http://statistics.data.gov.uk/id/local-authority/12UE,Huntingdonshire District Council,23/05/2013,127294,847.22,Deloitte,CR416667,Estates Properties Capital,Consultants,711
http://statistics.data.gov.uk/id/local-authority/12UE,Huntingdonshire District Council,23/05/2013,125762,1275,Lavat,CR480410,Estates Properties Capital,Consultants,711
http://statistics.data.gov.uk/id/local-authority/12UE,Huntingdonshire District Council,09/05/2013,126313,17903.64,Freeth Cartwright Llp,CR480787,Estates Properties Capital,Legal Fees,729
http://statistics.data.gov.uk/id/local-authority/12UE,Huntingdonshire District Council,09/05/2013,125329,24000,Pricewaterhouse Coopers Llp,CR487210,External Audit,Audit Fees,701
http://statistics.data.gov.uk/id/local-authority/12UE,Huntingdonshire District Council,09/05/2013,126160,2069.22,C G Utilities,CR119758,Facilities Mgt,Consultants,711
http://statistics.data.gov.uk/id/local-authority/12UE,Huntingdonshire District Council,16/05/2013,125981,7.75,Vodafone Limited,CR029120,Facilities Mgt,Mobile Telephones & Radios,241
http://statistics.data.gov.uk/id/local-authority/12UE,Huntingdonshire District Council,30/05/2013,127147,1186.8,Kennedys,CR478788,Financial Services,Insurance Public Liability,160
http://statistics.data.gov.uk/id/local-authority/12UE,Huntingdonshire District Council,02/05/2013,121330,1959.72,Advanced Business Solutions,CR032921,Financial Services,Software,206
http://statistics.data.gov.uk/id/local-authority/12UE,Huntingdonshire District Council,16/05/2013,125981,28.61,Vodafone Limited,CR029120,Financial Services Mus,Mobile Telephones & Radios,241
http://statistics.data.gov.uk/id/local-authority/12UE,Huntingdonshire District Council,16/05/2013,125855,239.59,Amalgamated Computer Supplies,CR480830,Financial Services Mus,Stationery,225
http://statistics.data.gov.uk/id/local-authority/12UE,Huntingdonshire District Council,16/05/2013,126191,900,Masternaut,CR416550,Fleet Management,Equipment Maintenance,511
http://statistics.data.gov.uk/id/local-authority/12UE,Huntingdonshire District Council,23/05/2013,126377,759.24,Freedom Lubricants Ltd,CR411569,Fleet Management,Materials,550
http://statistics.data.gov.uk/id/local-authority/12UE,Huntingdonshire District Council,30/05/2013,127156,769.28,United Wipes,CR477773,Fleet Management,Materials,550
http://statistics.data.gov.uk/id/local-authority/12UE,Huntingdonshire District Council,30/05/2013,126940,2059.44,Days Contract Hire,CR417030,Fleet Management,Vehicle Hire,607
http://statistics.data.gov.uk/id/local-authority/12UE,Huntingdonshire District Council,16/05/2013,126179,1240.32,Terberg Matec Uk Ltd,CR402183,Fleet Management,Vehicle Parts & Fittings,625
http://statistics.data.gov.uk/id/local-authority/12UE,Huntingdonshire District Council,30/05/2013,127257,600.84,Trinity Engineering & Component Supplies Ltd,CR455479,Fleet Management,Vehicle Parts & Fittings,625
http://statistics.data.gov.uk/id/local-authority/12UE,Huntingdonshire District Council,30/05/2013,126173,640.86,Osborne Richardson,CR482551,Food Safety,Hired Staff,100
http://statistics.data.gov.uk/id/local-authority/12UE,Huntingdonshire District Council,02/05/2013,125763,1020,Aquila Training Services Ltd,CR479260,Food Safety,Training - Operational,131
http://statistics.data.gov.uk/id/local-authority/12UE,Huntingdonshire District Council,09/05/2013,125283,595,University Of Warwick,CR477522,Food Safety,Training - Professional,130
http://statistics.data.gov.uk/id/local-authority/12UE,Huntingdonshire District Council,30/05/2013,126773,2048.68,Euramka Promotions Ltd,CR001864,Grounds Maintenance (Combined),Diesel,615
http://statistics.data.gov.uk/id/local-authority/12UE,Huntingdonshire District Council,30/05/2013,127295,684.43,Staffline Group,CR416827,Grounds Maintenance (Combined),Hired Staff,100
http://statistics.data.gov.uk/id/local-authority/12UE,Huntingdonshire District Council,09/05/2013,125782,667.3,Staffline Group,CR416827,Grounds Maintenance (Combined),Hired Staff,100
http://statistics.data.gov.uk/id/local-authority/12UE,Huntingdonshire District Council,23/05/2013,127170,667.3,Staffline Group,CR416827,Grounds Maintenance (Combined),Hired Staff,100
http://statistics.data.gov.uk/id/local-authority/12UE,Huntingdonshire District Council,16/05/2013,125850,524.3,Staffline Group,CR416827,Grounds Maintenance (Combined),Hired Staff,100
http://statistics.data.gov.uk/id/local-authority/12UE,Huntingdonshire District Council,30/05/2013,126773,148.48,Euramka Promotions Ltd,CR001864,Grounds Maintenance (Combined),Petrol,614
http://statistics.data.gov.uk/id/local-authority/12UE,Huntingdonshire District Council,30/05/2013,126942,347.87,Shell Uk Ltd,CR028192,Grounds Maintenance (Combined),Petrol,614
http://statistics.data.gov.uk/id/local-authority/12UE,Huntingdonshire District Council,09/05/2013,124846,300,Ians Tyre And Exhaust Centre,CR405836,Grounds Maintenance (Combined),Tyres,630
http://statistics.data.gov.uk/id/local-authority/12UE,Huntingdonshire District Council,16/05/2013,125981,70.32,Vodafone Limited,CR029120,Head Of Imd,Mobile Telephones & Radios,241
http://statistics.data.gov.uk/id/local-authority/12UE,Huntingdonshire District Council,09/05/2013,125982,1416.66,Twofold Consulting,CR453929,Helpdesk,Equipment Maintenance,511
http://statistics.data.gov.uk/id/local-authority/12UE,Huntingdonshire District Council,30/05/2013,126368,2010,Edrm Systems Ltd,CR416278,Helpdesk,Hired Staff,100
http://statistics.data.gov.uk/id/local-authority/12UE,Huntingdonshire District Council,02/05/2013,124370,558,It Talent Solutions Ltd,CR482676,Helpdesk,Hired Staff,100
http://statistics.data.gov.uk/id/local-authority/12UE,Huntingdonshire District Council,23/05/2013,126349,1260,Premier It Recruitment Ltd,CR454029,Helpdesk,Hired Staff,100
http://statistics.data.gov.uk/id/local-authority/12UE,Huntingdonshire District Council,09/05/2013,124889,1008,Premier It Recruitment Ltd,CR454029,Helpdesk,Hired Staff,100
http://statistics.data.gov.uk/id/local-authority/12UE,Huntingdonshire District Council,16/05/2013,125896,756,Premier It Recruitment Ltd,CR454029,Helpdesk,Hired Staff,100
http://statistics.data.gov.uk/id/local-authority/12UE,Huntingdonshire District Council,09/05/2013,124886,585,Premier It Recruitment Ltd,CR454029,Helpdesk,Hired Staff,100
http://statistics.data.gov.uk/id/local-authority/12UE,Huntingdonshire District Council,09/05/2013,125116,567,Premier It Recruitment Ltd,CR454029,Helpdesk,Hired Staff,100
http://statistics.data.gov.uk/id/local-authority/12UE,Huntingdonshire District Council,09/05/2013,126357,1788.55,Daisy Communications Ltd,CR481089,Helpdesk,I T Line Rental,248
http://statistics.data.gov.uk/id/local-authority/12UE,Huntingdonshire District Council,30/05/2013,126336,2048.06,Virgin Media Business,CR033120,Helpdesk,I T Line Rental,248
http://statistics.data.gov.uk/id/local-authority/12UE,Huntingdonshire District Council,02/05/2013,124367,2048.06,Virgin Media Business,CR033120,Helpdesk,I T Line Rental,248
http://statistics.data.gov.uk/id/local-authority/12UE,Huntingdonshire District Council,16/05/2013,126866,7109.59,Virgin Media Business/Cpsn,CR455148,Helpdesk,I T Line Rental,248
http://statistics.data.gov.uk/id/local-authority/12UE,Huntingdonshire District Council,16/05/2013,125981,73.29,Vodafone Limited,CR029120,Helpdesk,Mobile Telephones & Radios,241
http://statistics.data.gov.uk/id/local-authority/12UE,Huntingdonshire District Council,23/05/2013,125946,612,Comtec,CR480140,Helpdesk,Network Hardware,205
http://statistics.data.gov.uk/id/local-authority/12UE,Huntingdonshire District Council,23/05/2013,127247,15930.94,Eacs Ltd,CR404499,Helpdesk,Software,206
http://statistics.data.gov.uk/id/local-authority/12UE,Huntingdonshire District Council,30/05/2013,126336,1419.23,Virgin Media Business,CR033120,Helpdesk,Telephone Charges,240
http://statistics.data.gov.uk/id/local-authority/12UE,Huntingdonshire District Council,02/05/2013,124367,1267.59,Virgin Media Business,CR033120,Helpdesk,Telephone Charges,240
http://statistics.data.gov.uk/id/local-authority/12UE,Huntingdonshire District Council,16/05/2013,122047,624,Alexanders,CR415843,Homelessness Management,Removal/Storage,750
http://statistics.data.gov.uk/id/local-authority/12UE,Huntingdonshire District Council,16/05/2013,125805,528,Alexanders,CR415843,Homelessness Management,Removal/Storage,750
http://statistics.data.gov.uk/id/local-authority/12UE,Huntingdonshire District Council,30/05/2013,125899,974.14,James Andrews Recruitment,CR453753,Housing Management Units,Hired Staff,100
http://statistics.data.gov.uk/id/local-authority/12UE,Huntingdonshire District Council,16/05/2013,124971,954.4,James Andrews Recruitment,CR453753,Housing Management Units,Hired Staff,100
http://statistics.data.gov.uk/id/local-authority/12UE,Huntingdonshire District Council,02/05/2013,124071,842.5,James Andrews Recruitment,CR453753,Housing Management Units,Hired Staff,100
http://statistics.data.gov.uk/id/local-authority/12UE,Huntingdonshire District Council,09/05/2013,124631,803,James Andrews Recruitment,CR453753,Housing Management Units,Hired Staff,100
http://statistics.data.gov.uk/id/local-authority/12UE,Huntingdonshire District Council,23/05/2013,125402,803,James Andrews Recruitment,CR453753,Housing Management Units,Hired Staff,100
http://statistics.data.gov.uk/id/local-authority/12UE,Huntingdonshire District Council,16/05/2013,125981,113.41,Vodafone Limited,CR029120,Housing Management Units,Mobile Telephones & Radios,241
http://statistics.data.gov.uk/id/local-authority/12UE,Huntingdonshire District Council,23/05/2013,126234,986.64,Luminus Homes,CR401276,Housing Services Other,Gen Building Mtce - Responsive,303
http://statistics.data.gov.uk/id/local-authority/12UE,Huntingdonshire District Council,23/05/2013,126232,900.76,Luminus Homes,CR401276,Housing Services Other,Gen Building Mtce - Responsive,303
http://statistics.data.gov.uk/id/local-authority/12UE,Huntingdonshire District Council,16/05/2013,125299,2160,Rsa Environmental Health Limited,CR482415,Human Resources,Consultants,711
http://statistics.data.gov.uk/id/local-authority/12UE,Huntingdonshire District Council,16/05/2013,126219,109200,Cambridgeshire County Council,CR017440,Human Resources,Human Resources Services,779
http://statistics.data.gov.uk/id/local-authority/12UE,Huntingdonshire District Council,09/05/2013,126178,4578.97,Hinchingbrooke Healthcare Nhs,CR003003,Human Resources,Medical Fees,734
http://statistics.data.gov.uk/id/local-authority/12UE,Huntingdonshire District Council,16/05/2013,125981,101.42,Vodafone Limited,CR029120,Human Resources,Mobile Telephones & Radios,241
http://statistics.data.gov.uk/id/local-authority/12UE,Huntingdonshire District Council,30/05/2013,126639,1200,Safety Media Ltd,CR033676,Human Resources,Training - Health & Safety,133
http://statistics.data.gov.uk/id/local-authority/12UE,Huntingdonshire District Council,30/05/2013,126368,1005,Edrm Systems Ltd,CR416278,Imd Trading,Hired Staff,100
http://statistics.data.gov.uk/id/local-authority/12UE,Huntingdonshire District Council,16/05/2013,125981,76.01,Vodafone Limited,CR029120,Imd Trading,Mobile Telephones & Radios,241
http://statistics.data.gov.uk/id/local-authority/12UE,Huntingdonshire District Council,23/05/2013,124351,17122.43,Acebench Limited,CR405428,Industrial Properties,Building Insurance,414
http://statistics.data.gov.uk/id/local-authority/12UE,Huntingdonshire District Council,16/05/2013,125297,1083.6,B. S. Graves Electrical Ltd,CR000363,Industrial Properties,Gen Building Mtce - Responsive,303
http://statistics.data.gov.uk/id/local-authority/12UE,Huntingdonshire District Council,02/05/2013,123930,2920.2,J Breheny Contractors Ltd,CR000314,Industrial Properties,Sitework,359
http://statistics.data.gov.uk/id/local-authority/12UE,Huntingdonshire District Council,16/05/2013,125981,77.71,Vodafone Limited,CR029120,Information Manager,Mobile Telephones & Radios,241
http://statistics.data.gov.uk/id/local-authority/12UE,Huntingdonshire District Council,16/05/2013,122903,2556,Idox Information Solutions Ltd,CR481134,Information Manager,Software,206
http://statistics.data.gov.uk/id/local-authority/12UE,Huntingdonshire District Council,16/05/2013,122903,13469.83,Idox Information Solutions Ltd,CR481134,Land Charges,Software,206
http://statistics.data.gov.uk/id/local-authority/12UE,Huntingdonshire District Council,16/05/2013,125837,5634,Building Services Design - Bsd,CR409263,Leisure Centres Capital,Building Construction,300
http://statistics.data.gov.uk/id/local-authority/12UE,Huntingdonshire District Council,09/05/2013,125306,25782.16,Escape Fitness,CR479121,Leisure Centres Capital,Equipment Purchases,500
http://statistics.data.gov.uk/id/local-authority/12UE,Huntingdonshire District Council,16/05/2013,126684,15940.8,Escape Fitness,CR479121,Leisure Centres Capital,Equipment Purchases,500
http://statistics.data.gov.uk/id/local-authority/12UE,Huntingdonshire District Council,16/05/2013,126392,12417.31,Escape Fitness,CR479121,Leisure Centres Capital,Equipment Purchases,500
http://statistics.data.gov.uk/id/local-authority/12UE,Huntingdonshire District Council,09/05/2013,125307,9543.6,Escape Fitness,CR479121,Leisure Centres Capital,Equipment Purchases,500
http://statistics.data.gov.uk/id/local-authority/12UE,Huntingdonshire District Council,16/05/2013,126388,3906,Escape Fitness,CR479121,Leisure Centres Capital,Equipment Purchases,500
http://statistics.data.gov.uk/id/local-authority/12UE,Huntingdonshire District Council,16/05/2013,126947,1198.8,Escape Fitness,CR479121,Leisure Centres Capital,Equipment Purchases,500
http://statistics.data.gov.uk/id/local-authority/12UE,Huntingdonshire District Council,16/05/2013,126935,-17991.6,Escape Fitness,CR479121,Leisure Centres Capital,Equipment Purchases,500
http://statistics.data.gov.uk/id/local-authority/12UE,Huntingdonshire District Council,23/05/2013,126389,8653.11,Jordan Leisure Systems,CR413161,Leisure Centres Capital,Equipment Purchases,500
http://statistics.data.gov.uk/id/local-authority/12UE,Huntingdonshire District Council,16/05/2013,126917,5621.24,Performance Health Systems Ltd,CR455618,Leisure Centres Capital,Equipment Purchases,500
http://statistics.data.gov.uk/id/local-authority/12UE,Huntingdonshire District Council,09/05/2013,126226,129177.24,Technogym Uk Ltd,CR033037,Leisure Centres Capital,Equipment Purchases,500
http://statistics.data.gov.uk/id/local-authority/12UE,Huntingdonshire District Council,23/05/2013,125834,12700.14,Trixter Europe Ltd,CR453874,Leisure Centres Capital,Equipment Purchases,500
http://statistics.data.gov.uk/id/local-authority/12UE,Huntingdonshire District Council,16/05/2013,126171,3009.42,Burgin Ltd,CR482438,Leisure Centres Capital,Gen Building Mtce - Planned,304
http://statistics.data.gov.uk/id/local-authority/12UE,Huntingdonshire District Council,28/05/2013,127627,518689.98,R G Carter Peterborough,CR401511,Leisure Centres Capital,Gen Building Mtce - Planned,304
http://statistics.data.gov.uk/id/local-authority/12UE,Huntingdonshire District Council,30/05/2013,126694,15756,Technical Surfaces Ltd,CR031941,Leisure Centres Capital,Grounds Mtce Contractors,351
http://statistics.data.gov.uk/id/local-authority/12UE,Huntingdonshire District Council,02/05/2013,124524,557.86,Dell Computer Corporation,CR408320,Leisure Centres Capital,Other I T Hardware,203
http://statistics.data.gov.uk/id/local-authority/12UE,Huntingdonshire District Council,02/05/2013,124523,2932.98,Dell Computer Corporation,CR408320,Leisure Centres Capital,P C'S And Accessories,201
http://statistics.data.gov.uk/id/local-authority/12UE,Huntingdonshire District Council,23/05/2013,125893,1047.24,East Anglia Design & Print Ltd,CR401203,Leisure Centres Overall,Advertising/Promoting Services,255
http://statistics.data.gov.uk/id/local-authority/12UE,Huntingdonshire District Council,16/05/2013,125981,79.6,Vodafone Limited,CR029120,Leisure Development,Mobile Telephones & Radios,241
http://statistics.data.gov.uk/id/local-authority/12UE,Huntingdonshire District Council,09/05/2013,125115,732,West Anglia Training Assoc.Ltd,CR025035,Leisure Development,Training - Operational,131
http://statistics.data.gov.uk/id/local-authority/12UE,Huntingdonshire District Council,23/05/2013,127337,595,Wright Foundation,CR403086,Leisure Development,Training - Operational,131
http://statistics.data.gov.uk/id/local-authority/12UE,Huntingdonshire District Council,09/05/2013,125093,11657.93,Direct2fans Ltd,CR455582,Leisure Services Capital,Equipment Purchases,500
http://statistics.data.gov.uk/id/local-authority/12UE,Huntingdonshire District Council,09/05/2013,125092,-648.02,Direct2fans Ltd,CR455582,Leisure Services Capital,Equipment Purchases,500
http://statistics.data.gov.uk/id/local-authority/12UE,Huntingdonshire District Council,02/05/2013,125308,10313.4,Trixter Europe Ltd,CR453874,Leisure Services Capital,Equipment Purchases,500
http://statistics.data.gov.uk/id/local-authority/12UE,Huntingdonshire District Council,02/05/2013,124817,1310.28,Mogo Uk,CR410378,Licences,Licence Plates,564
http://statistics.data.gov.uk/id/local-authority/12UE,Huntingdonshire District Council,02/05/2013,124022,304.8,Capita Business Services Ltd,CR410639,Licences,Software,206
http://statistics.data.gov.uk/id/local-authority/12UE,Huntingdonshire District Council,16/05/2013,122903,9211.48,Idox Information Solutions Ltd,CR481134,Licences,Software,206
http://statistics.data.gov.uk/id/local-authority/12UE,Huntingdonshire District Council,09/05/2013,125344,594,The Institute Of Licensing,CR455688,Licences,Training - Professional,130
http://statistics.data.gov.uk/id/local-authority/12UE,Huntingdonshire District Council,30/05/2013,126200,1876.25,T C Harrison Ford,CR405072,Licences,Vehicle Inspection,618
http://statistics.data.gov.uk/id/local-authority/12UE,Huntingdonshire District Council,09/05/2013,125529,5200.65,Aecom,CR478307,Local Development Framework,Consultants,711
http://statistics.data.gov.uk/id/local-authority/12UE,Huntingdonshire District Council,09/05/2013,125530,2310.55,Aecom,CR478307,Local Development Framework,Consultants,711
http://statistics.data.gov.uk/id/local-authority/12UE,Huntingdonshire District Council,02/05/2013,125528,21682.38,Deloitte Llp,CR400573,Local Development Framework,Consultants,711
http://statistics.data.gov.uk/id/local-authority/12UE,Huntingdonshire District Council,23/05/2013,126938,18693.52,Deloitte Llp,CR400573,Local Development Framework,Consultants,711
http://statistics.data.gov.uk/id/local-authority/12UE,Huntingdonshire District Council,16/05/2013,126936,5973.76,Deloitte Llp,CR400573,Local Development Framework,Consultants,711
http://statistics.data.gov.uk/id/local-authority/12UE,Huntingdonshire District Council,23/05/2013,126927,4289.04,The Landscape Partnership,CR455142,Local Development Framework,Consultants,711
http://statistics.data.gov.uk/id/local-authority/12UE,Huntingdonshire District Council,16/05/2013,125981,205.99,Vodafone Limited,CR029120,Managing Directors,Mobile Telephones & Radios,241
http://statistics.data.gov.uk/id/local-authority/12UE,Huntingdonshire District Council,23/05/2013,126623,4296,Uk Power Networks,CR403938,Markets,Sitework,359
http://statistics.data.gov.uk/id/local-authority/12UE,Huntingdonshire District Council,23/05/2013,126624,3960,Uk Power Networks,CR403938,Markets,Sitework,359
http://statistics.data.gov.uk/id/local-authority/12UE,Huntingdonshire District Council,16/05/2013,126351,594,Local Government Association,CR411957,Member Allowances & Support,Conferences,137
http://statistics.data.gov.uk/id/local-authority/12UE,Huntingdonshire District Council,16/05/2013,126651,12540,Local Government Association,CR400598,Member Allowances & Support,Corporate Subscriptions,754
http://statistics.data.gov.uk/id/local-authority/12UE,Huntingdonshire District Council,30/05/2013,126336,20.7,Virgin Media Business,CR033120,Member Allowances & Support,I T Line Rental,248
http://statistics.data.gov.uk/id/local-authority/12UE,Huntingdonshire District Council,02/05/2013,124367,20.7,Virgin Media Business,CR033120,Member Allowances & Support,I T Line Rental,248
http://statistics.data.gov.uk/id/local-authority/12UE,Huntingdonshire District Council,16/05/2013,125981,311.99,Vodafone Limited,CR029120,Member Allowances & Support,Mobile Telephones & Radios,241
http://statistics.data.gov.uk/id/local-authority/12UE,Huntingdonshire District Council,30/05/2013,127801,805,Information Commissioner,CR404972,Member Allowances & Support,Registration Fee,748
http://statistics.data.gov.uk/id/local-authority/12UE,Huntingdonshire District Council,30/05/2013,126336,0.08,Virgin Media Business,CR033120,Member Allowances & Support,Telephone Charges,240
http://statistics.data.gov.uk/id/local-authority/12UE,Huntingdonshire District Council,02/05/2013,124367,0.07,Virgin Media Business,CR033120,Member Allowances & Support,Telephone Charges,240
http://statistics.data.gov.uk/id/local-authority/12UE,Huntingdonshire District Council,02/05/2013,123834,2500,Care Network,CR477579,Miscellaneous Grants,Grants (Paid Out),800
http://statistics.data.gov.uk/id/local-authority/12UE,Huntingdonshire District Council,02/05/2013,123836,4750,Disability Information Service Huntingdonshir,CR408884,Miscellaneous Grants,Grants (Paid Out),800
http://statistics.data.gov.uk/id/local-authority/12UE,Huntingdonshire District Council,30/05/2013,126159,850.2,Portakabin Ltd,CR478566,Miscellaneous Grants,Grants (Paid Out),800
http://statistics.data.gov.uk/id/local-authority/12UE,Huntingdonshire District Council,16/05/2013,125368,720,Dal-Rod Uk Ltd,CR002782,Nightsoil Collection,Subcontractors,777
http://statistics.data.gov.uk/id/local-authority/12UE,Huntingdonshire District Council,09/05/2013,124884,3350.88,Princebuild Ltd,CR000645,Oak Tree Health Centre,Gen Building Mtce - Responsive,303
http://statistics.data.gov.uk/id/local-authority/12UE,Huntingdonshire District Council,02/05/2013,123950,1478.32,J Breheny Contractors Ltd,CR000314,Oak Tree Health Centre,Sitework,359
http://statistics.data.gov.uk/id/local-authority/12UE,Huntingdonshire District Council,09/05/2013,125489,137.66,Uk Point Of Sale Group Ltd,CR478991,One Leisure Huntingdon,Advertising/Promoting Services,255
http://statistics.data.gov.uk/id/local-authority/12UE,Huntingdonshire District Council,02/05/2013,125383,1387.5,Ecocleen Services Limited,CR406985,One Leisure Huntingdon,Building Cleaning Internal,440
http://statistics.data.gov.uk/id/local-authority/12UE,Huntingdonshire District Council,16/05/2013,126751,1387.5,Ecocleen Services Limited,CR406985,One Leisure Huntingdon,Building Cleaning Internal,440
http://statistics.data.gov.uk/id/local-authority/12UE,Huntingdonshire District Council,02/05/2013,124948,297.62,G4s Cashservices Uk Ltd,CR407133,One Leisure Huntingdon,Cash Collection,702
http://statistics.data.gov.uk/id/local-authority/12UE,Huntingdonshire District Council,30/05/2013,127207,372.03,G4s Cashservices Uk Ltd,CR407133,One Leisure Huntingdon,Cash Collection,702
http://statistics.data.gov.uk/id/local-authority/12UE,Huntingdonshire District Council,23/05/2013,126724,700.26,Brenntag Uk Ltd,CR015017,One Leisure Huntingdon,Chemicals,551
http://statistics.data.gov.uk/id/local-authority/12UE,Huntingdonshire District Council,02/05/2013,125385,504.57,Chemaide Ltd,CR413480,One Leisure Huntingdon,Cleaning Materials,443
http://statistics.data.gov.uk/id/local-authority/12UE,Huntingdonshire District Council,09/05/2013,125534,508.45,Elecheck (Est) Ltd,CR480242,One Leisure Huntingdon,Electrical Testing,383
http://statistics.data.gov.uk/id/local-authority/12UE,Huntingdonshire District Council,23/05/2013,127336,4451.89,E-On Energy,CR416430,One Leisure Huntingdon,Electricity,420
http://statistics.data.gov.uk/id/local-authority/12UE,Huntingdonshire District Council,09/05/2013,126356,4258.43,E-On Energy,CR416430,One Leisure Huntingdon,Electricity,420
http://statistics.data.gov.uk/id/local-authority/12UE,Huntingdonshire District Council,23/05/2013,127342,-4258.43,E-On Energy,CR416430,One Leisure Huntingdon,Electricity,420
http://statistics.data.gov.uk/id/local-authority/12UE,Huntingdonshire District Council,16/05/2013,126203,615,Swalec,CR407130,One Leisure Huntingdon,Electricity,420
http://statistics.data.gov.uk/id/local-authority/12UE,Huntingdonshire District Council,16/05/2013,126721,571.44,Fire And Safety Solutions Ltd,CR479928,One Leisure Huntingdon,Equipment Maintenance,511
http://statistics.data.gov.uk/id/local-authority/12UE,Huntingdonshire District Council,23/05/2013,126722,4128,Technogym Uk Ltd,CR033037,One Leisure Huntingdon,Equipment Purchases,500
http://statistics.data.gov.uk/id/local-authority/12UE,Huntingdonshire District Council,16/05/2013,126607,5826.79,E-On Energy,CR416430,One Leisure Huntingdon,Gas,421
http://statistics.data.gov.uk/id/local-authority/12UE,Huntingdonshire District Council,16/05/2013,126611,1052.09,E-On Energy,CR416430,One Leisure Huntingdon,Gas,421
http://statistics.data.gov.uk/id/local-authority/12UE,Huntingdonshire District Council,16/05/2013,126749,1129.36,Roger Wilson Electronics,CR028041,One Leisure Huntingdon,Gen Building Mtce - Planned,304
http://statistics.data.gov.uk/id/local-authority/12UE,Huntingdonshire District Council,30/05/2013,126915,2898,Gladstone Mrm,CR405717,One Leisure Huntingdon,Licences,730
http://statistics.data.gov.uk/id/local-authority/12UE,Huntingdonshire District Council,02/05/2013,124603,1571.04,Ken Booth & Co,CR000305,One Leisure Huntingdon,Materials,550
http://statistics.data.gov.uk/id/local-authority/12UE,Huntingdonshire District Council,16/05/2013,126728,570,Pool Solutions Ltd,CR412070,One Leisure Huntingdon,Plant & Equipment Maintenance,380
http://statistics.data.gov.uk/id/local-authority/12UE,Huntingdonshire District Council,16/05/2013,125484,421.2,Bigprinting,CR416383,One Leisure Huntingdon,Printing (External),220
http://statistics.data.gov.uk/id/local-authority/12UE,Huntingdonshire District Council,02/05/2013,125401,897.74,Phs Group Ltd,CR032018,One Leisure Huntingdon,Subcontractors,777
http://statistics.data.gov.uk/id/local-authority/12UE,Huntingdonshire District Council,30/05/2013,126336,0.31,Virgin Media Business,CR033120,One Leisure Huntingdon,Telephone Charges,240
http://statistics.data.gov.uk/id/local-authority/12UE,Huntingdonshire District Council,02/05/2013,124367,1.03,Virgin Media Business,CR033120,One Leisure Huntingdon,Telephone Charges,240
http://statistics.data.gov.uk/id/local-authority/12UE,Huntingdonshire District Council,23/05/2013,125468,138,Optimus Consult Ltd,CR455181,One Leisure Huntingdon,Training - Operational,131
http://statistics.data.gov.uk/id/local-authority/12UE,Huntingdonshire District Council,16/05/2013,126686,977.75,Booker Cash And Carry,CR027611,One Leisure Huntingdon,Vending Materials,560
http://statistics.data.gov.uk/id/local-authority/12UE,Huntingdonshire District Council,09/05/2013,125441,608.29,Glaxosmithkline,CR010424,One Leisure Huntingdon,Vending Materials,560
http://statistics.data.gov.uk/id/local-authority/12UE,Huntingdonshire District Council,09/05/2013,125489,137.66,Uk Point Of Sale Group Ltd,CR478991,One Leisure Ramsey,Advertising/Promoting Services,255
http://statistics.data.gov.uk/id/local-authority/12UE,Huntingdonshire District Council,02/05/2013,124948,74.41,G4s Cashservices Uk Ltd,CR407133,One Leisure Ramsey,Cash Collection,702
http://statistics.data.gov.uk/id/local-authority/12UE,Huntingdonshire District Council,02/05/2013,125538,224.85,Elecheck (Est) Ltd,CR480242,One Leisure Ramsey,Electrical Testing,383
http://statistics.data.gov.uk/id/local-authority/12UE,Huntingdonshire District Council,16/05/2013,126204,2538.14,Swalec,CR407130,One Leisure Ramsey,Electricity,420
http://statistics.data.gov.uk/id/local-authority/12UE,Huntingdonshire District Council,16/05/2013,126319,9467.02,Technogym Uk Ltd,CR033037,One Leisure Ramsey,Equipment Maintenance,511
http://statistics.data.gov.uk/id/local-authority/12UE,Huntingdonshire District Council,16/05/2013,126614,1996.62,E-On Energy,CR416430,One Leisure Ramsey,Gas,421
http://statistics.data.gov.uk/id/local-authority/12UE,Huntingdonshire District Council,09/05/2013,125943,821.81,Ecocleen Services Limited,CR406985,One Leisure Ramsey,Gen Building Mtce - Planned,304
http://statistics.data.gov.uk/id/local-authority/12UE,Huntingdonshire District Council,16/05/2013,126316,821.81,Ecocleen Services Limited,CR406985,One Leisure Ramsey,Gen Building Mtce - Planned,304
http://statistics.data.gov.uk/id/local-authority/12UE,Huntingdonshire District Council,23/05/2013,126172,1383.6,Dyno Rod Ltd,CR455660,One Leisure Ramsey,Gen Building Mtce - Responsive,303
http://statistics.data.gov.uk/id/local-authority/12UE,Huntingdonshire District Council,16/05/2013,126320,533.32,Roger Wilson Electronics,CR028041,One Leisure Ramsey,Gen Building Mtce - Responsive,303
http://statistics.data.gov.uk/id/local-authority/12UE,Huntingdonshire District Council,30/05/2013,126915,828,Gladstone Mrm,CR405717,One Leisure Ramsey,Licences,730
http://statistics.data.gov.uk/id/local-authority/12UE,Huntingdonshire District Council,02/05/2013,125963,1459.2,Pool Solutions Ltd,CR412070,One Leisure Ramsey,Plant & Equipment Maintenance,380
http://statistics.data.gov.uk/id/local-authority/12UE,Huntingdonshire District Council,30/05/2013,127662,628.8,G4s Secure Solutions (Uk) Ltd,CR454030,One Leisure Ramsey,Security,450
http://statistics.data.gov.uk/id/local-authority/12UE,Huntingdonshire District Council,23/05/2013,125468,138,Optimus Consult Ltd,CR455181,One Leisure Ramsey,Training - Operational,131
http://statistics.data.gov.uk/id/local-authority/12UE,Huntingdonshire District Council,02/05/2013,125944,534.85,Booker Cash And Carry,CR027611,One Leisure Ramsey,Vending Materials,560
http://statistics.data.gov.uk/id/local-authority/12UE,Huntingdonshire District Council,09/05/2013,125489,137.68,Uk Point Of Sale Group Ltd,CR478991,One Leisure Sawtry,Advertising/Promoting Services,255
http://statistics.data.gov.uk/id/local-authority/12UE,Huntingdonshire District Council,02/05/2013,124948,74.41,G4s Cashservices Uk Ltd,CR407133,One Leisure Sawtry,Cash Collection,702
http://statistics.data.gov.uk/id/local-authority/12UE,Huntingdonshire District Council,30/05/2013,127207,74.41,G4s Cashservices Uk Ltd,CR407133,One Leisure Sawtry,Cash Collection,702
http://statistics.data.gov.uk/id/local-authority/12UE,Huntingdonshire District Council,02/05/2013,125538,217.69,Elecheck (Est) Ltd,CR480242,One Leisure Sawtry,Electrical Testing,383
http://statistics.data.gov.uk/id/local-authority/12UE,Huntingdonshire District Council,16/05/2013,126205,3498.22,Swalec,CR407130,One Leisure Sawtry,Electricity,420
http://statistics.data.gov.uk/id/local-authority/12UE,Huntingdonshire District Council,16/05/2013,126610,1899.42,E-On Energy,CR416430,One Leisure Sawtry,Gas,421
http://statistics.data.gov.uk/id/local-authority/12UE,Huntingdonshire District Council,16/05/2013,126577,1089.3,Ecocleen Services Limited,CR406985,One Leisure Sawtry,Gen Building Mtce - Planned,304
http://statistics.data.gov.uk/id/local-authority/12UE,Huntingdonshire District Council,30/05/2013,126915,828,Gladstone Mrm,CR405717,One Leisure Sawtry,Licences,730
http://statistics.data.gov.uk/id/local-authority/12UE,Huntingdonshire District Council,23/05/2013,125468,138,Optimus Consult Ltd,CR455181,One Leisure Sawtry,Training - Operational,131
http://statistics.data.gov.uk/id/local-authority/12UE,Huntingdonshire District Council,16/05/2013,125487,468,Glasdon Uk Ltd,CR002827,One Leisure St Ives,Advertising/Promoting Services,255
http://statistics.data.gov.uk/id/local-authority/12UE,Huntingdonshire District Council,09/05/2013,125489,137.66,Uk Point Of Sale Group Ltd,CR478991,One Leisure St Ives,Advertising/Promoting Services,255
http://statistics.data.gov.uk/id/local-authority/12UE,Huntingdonshire District Council,16/05/2013,126665,764.46,Booker Cash And Carry,CR027611,One Leisure St Ives,Bar Provisions,558
http://statistics.data.gov.uk/id/local-authority/12UE,Huntingdonshire District Council,30/05/2013,126249,803.74,Booker Cash And Carry,CR027611,One Leisure St Ives,Bar Provisions,558
http://statistics.data.gov.uk/id/local-authority/12UE,Huntingdonshire District Council,30/05/2013,127723,320.99,Booker Cash And Carry,CR027611,One Leisure St Ives,Bar Provisions,558
http://statistics.data.gov.uk/id/local-authority/12UE,Huntingdonshire District Council,02/05/2013,125352,336.82,Booker Cash And Carry,CR027611,One Leisure St Ives,Bar Provisions,558
http://statistics.data.gov.uk/id/local-authority/12UE,Huntingdonshire District Council,23/05/2013,125826,1260.98,Heineken Uk Ltd,CR032678,One Leisure St Ives,Bar Provisions,558
http://statistics.data.gov.uk/id/local-authority/12UE,Huntingdonshire District Council,30/05/2013,126258,970.15,Heineken Uk Ltd,CR032678,One Leisure St Ives,Bar Provisions,558
http://statistics.data.gov.uk/id/local-authority/12UE,Huntingdonshire District Council,09/05/2013,126230,1750.19,Ecocleen Services Limited,CR406985,One Leisure St Ives,Building Cleaning Internal,440
http://statistics.data.gov.uk/id/local-authority/12UE,Huntingdonshire District Council,02/05/2013,124948,223.22,G4s Cashservices Uk Ltd,CR407133,One Leisure St Ives,Cash Collection,702
http://statistics.data.gov.uk/id/local-authority/12UE,Huntingdonshire District Council,30/05/2013,127207,223.22,G4s Cashservices Uk Ltd,CR407133,One Leisure St Ives,Cash Collection,702
http://statistics.data.gov.uk/id/local-authority/12UE,Huntingdonshire District Council,16/05/2013,126665,69.59,Booker Cash And Carry,CR027611,One Leisure St Ives,Catering Materials,559
http://statistics.data.gov.uk/id/local-authority/12UE,Huntingdonshire District Council,30/05/2013,126249,5.49,Booker Cash And Carry,CR027611,One Leisure St Ives,Catering Materials,559
http://statistics.data.gov.uk/id/local-authority/12UE,Huntingdonshire District Council,30/05/2013,127723,42.94,Booker Cash And Carry,CR027611,One Leisure St Ives,Catering Materials,559
http://statistics.data.gov.uk/id/local-authority/12UE,Huntingdonshire District Council,02/05/2013,125352,25.29,Booker Cash And Carry,CR027611,One Leisure St Ives,Catering Materials,559
http://statistics.data.gov.uk/id/local-authority/12UE,Huntingdonshire District Council,16/05/2013,126665,61.14,Booker Cash And Carry,CR027611,One Leisure St Ives,Cleaning Materials,443
http://statistics.data.gov.uk/id/local-authority/12UE,Huntingdonshire District Council,30/05/2013,127723,2.86,Booker Cash And Carry,CR027611,One Leisure St Ives,Cleaning Materials,443
http://statistics.data.gov.uk/id/local-authority/12UE,Huntingdonshire District Council,02/05/2013,125352,10.91,Booker Cash And Carry,CR027611,One Leisure St Ives,Cleaning Materials,443
http://statistics.data.gov.uk/id/local-authority/12UE,Huntingdonshire District Council,30/05/2013,126249,183.02,Booker Cash And Carry,CR027611,One Leisure St Ives,Confectionery,572
http://statistics.data.gov.uk/id/local-authority/12UE,Huntingdonshire District Council,30/05/2013,127723,89.92,Booker Cash And Carry,CR027611,One Leisure St Ives,Confectionery,572
http://statistics.data.gov.uk/id/local-authority/12UE,Huntingdonshire District Council,09/05/2013,125333,1381.26,Pace Petroleum Ltd,CR001917,One Leisure St Ives,Diesel,615
http://statistics.data.gov.uk/id/local-authority/12UE,Huntingdonshire District Council,09/05/2013,125534,352.42,Elecheck (Est) Ltd,CR480242,One Leisure St Ives,Electrical Testing,383
http://statistics.data.gov.uk/id/local-authority/12UE,Huntingdonshire District Council,16/05/2013,126582,9196.72,E-On Energy,CR416430,One Leisure St Ives,Electricity,420
http://statistics.data.gov.uk/id/local-authority/12UE,Huntingdonshire District Council,23/05/2013,127335,2157.42,E-On Energy,CR416430,One Leisure St Ives,Electricity,420
http://statistics.data.gov.uk/id/local-authority/12UE,Huntingdonshire District Council,09/05/2013,126364,1818.86,E-On Energy,CR416430,One Leisure St Ives,Electricity,420
http://statistics.data.gov.uk/id/local-authority/12UE,Huntingdonshire District Council,16/05/2013,126861,809.92,E-On Energy,CR416430,One Leisure St Ives,Electricity,420
http://statistics.data.gov.uk/id/local-authority/12UE,Huntingdonshire District Council,23/05/2013,127341,-1818.86,E-On Energy,CR416430,One Leisure St Ives,Electricity,420
http://statistics.data.gov.uk/id/local-authority/12UE,Huntingdonshire District Council,30/05/2013,127745,543.6,Sky Business,CR033259,One Leisure St Ives,Entertainments Inc Cable Tv,744
http://statistics.data.gov.uk/id/local-authority/12UE,Huntingdonshire District Council,09/05/2013,125022,1181.17,Honeywell Novar Systems,CR406826,One Leisure St Ives,Equipment Maintenance,511
http://statistics.data.gov.uk/id/local-authority/12UE,Huntingdonshire District Council,30/05/2013,126698,983.11,Honeywell Novar Systems,CR406826,One Leisure St Ives,Equipment Maintenance,511
http://statistics.data.gov.uk/id/local-authority/12UE,Huntingdonshire District Council,02/05/2013,124110,1610,Lynx Bowling Services,CR455532,One Leisure St Ives,Equipment Maintenance,511
http://statistics.data.gov.uk/id/local-authority/12UE,Huntingdonshire District Council,23/05/2013,125829,3019.98,Amazonleisure Uk Ltd,CR455151,One Leisure St Ives,Equipment Purchases,500
http://statistics.data.gov.uk/id/local-authority/12UE,Huntingdonshire District Council,23/05/2013,125830,1042.79,Amazonleisure Uk Ltd,CR455151,One Leisure St Ives,Equipment Purchases,500
http://statistics.data.gov.uk/id/local-authority/12UE,Huntingdonshire District Council,02/05/2013,125352,28.77,Booker Cash And Carry,CR027611,One Leisure St Ives,Equipment Purchases,500
http://statistics.data.gov.uk/id/local-authority/12UE,Huntingdonshire District Council,30/05/2013,126395,739.2,Direct Communications Ltd,CR405782,One Leisure St Ives,Equipment Purchases,500
http://statistics.data.gov.uk/id/local-authority/12UE,Huntingdonshire District Council,16/05/2013,126835,2110.69,E A Ellison,CR480861,One Leisure St Ives,Equipment Purchases,500
http://statistics.data.gov.uk/id/local-authority/12UE,Huntingdonshire District Council,16/05/2013,126615,5035.55,E-On Energy,CR416430,One Leisure St Ives,Gas,421
http://statistics.data.gov.uk/id/local-authority/12UE,Huntingdonshire District Council,16/05/2013,126612,827.47,E-On Energy,CR416430,One Leisure St Ives,Gas,421
http://statistics.data.gov.uk/id/local-authority/12UE,Huntingdonshire District Council,09/05/2013,125014,1404.29,Roger Wilson Electronics,CR028041,One Leisure St Ives,Gen Building Mtce - Responsive,303
http://statistics.data.gov.uk/id/local-authority/12UE,Huntingdonshire District Council,16/05/2013,125462,1362.3,Sherriff Amenity Services,CR416316,One Leisure St Ives,Grounds Mtce Contractors,351
http://statistics.data.gov.uk/id/local-authority/12UE,Huntingdonshire District Council,30/05/2013,126915,2484,Gladstone Mrm,CR405717,One Leisure St Ives,Licences,730
http://statistics.data.gov.uk/id/local-authority/12UE,Huntingdonshire District Council,16/05/2013,126665,194.82,Booker Cash And Carry,CR027611,One Leisure St Ives,Materials,550
http://statistics.data.gov.uk/id/local-authority/12UE,Huntingdonshire District Council,30/05/2013,127723,102.77,Booker Cash And Carry,CR027611,One Leisure St Ives,Materials,550
http://statistics.data.gov.uk/id/local-authority/12UE,Huntingdonshire District Council,02/05/2013,125352,129.94,Booker Cash And Carry,CR027611,One Leisure St Ives,Materials,550
http://statistics.data.gov.uk/id/local-authority/12UE,Huntingdonshire District Council,09/05/2013,126393,13565.64,Decleor Uk Ltd,CR480786,One Leisure St Ives,Materials,550
http://statistics.data.gov.uk/id/local-authority/12UE,Huntingdonshire District Council,02/05/2013,124603,2094.72,Ken Booth & Co,CR000305,One Leisure St Ives,Materials,550
http://statistics.data.gov.uk/id/local-authority/12UE,Huntingdonshire District Council,30/05/2013,127741,507.2,Roger Wilson Electronics,CR028041,One Leisure St Ives,Materials,550
http://statistics.data.gov.uk/id/local-authority/12UE,Huntingdonshire District Council,09/05/2013,126393,4981.78,Decleor Uk Ltd,CR480786,One Leisure St Ives,Materials For Resale,570
http://statistics.data.gov.uk/id/local-authority/12UE,Huntingdonshire District Council,02/05/2013,124626,1085.7,Direct Communications Ltd,CR405782,One Leisure St Ives,Mobile Telephones & Radios,241
http://statistics.data.gov.uk/id/local-authority/12UE,Huntingdonshire District Council,16/05/2013,125981,150.51,Vodafone Limited,CR029120,One Leisure St Ives,Mobile Telephones & Radios,241
http://statistics.data.gov.uk/id/local-authority/12UE,Huntingdonshire District Council,16/05/2013,126253,1800,Pool Solutions Ltd,CR412070,One Leisure St Ives,Plant & Equipment Maintenance,380
http://statistics.data.gov.uk/id/local-authority/12UE,Huntingdonshire District Council,23/05/2013,126252,756,Pool Solutions Ltd,CR412070,One Leisure St Ives,Plant & Equipment Maintenance,380
http://statistics.data.gov.uk/id/local-authority/12UE,Huntingdonshire District Council,16/05/2013,125325,750,Siemens Plc,CR407224,One Leisure St Ives,Plant & Equipment Maintenance,380
http://statistics.data.gov.uk/id/local-authority/12UE,Huntingdonshire District Council,16/05/2013,125323,713.4,Siemens Plc,CR407224,One Leisure St Ives,Plant & Equipment Maintenance,380
http://statistics.data.gov.uk/id/local-authority/12UE,Huntingdonshire District Council,16/05/2013,125484,842.4,Bigprinting,CR416383,One Leisure St Ives,Printing (External),220
http://statistics.data.gov.uk/id/local-authority/12UE,Huntingdonshire District Council,16/05/2013,125487,468,Glasdon Uk Ltd,CR002827,One Leisure St Ives,Printing (External),220
http://statistics.data.gov.uk/id/local-authority/12UE,Huntingdonshire District Council,16/05/2013,121979,1044.82,Phs Group Ltd,CR032018,One Leisure St Ives,Subcontractors,777
http://statistics.data.gov.uk/id/local-authority/12UE,Huntingdonshire District Council,02/05/2013,124367,5.18,Virgin Media Business,CR033120,One Leisure St Ives,Telephone Charges,240
http://statistics.data.gov.uk/id/local-authority/12UE,Huntingdonshire District Council,02/05/2013,124110,1920,Lynx Bowling Services,CR455532,One Leisure St Ives,Training - Operational,131
http://statistics.data.gov.uk/id/local-authority/12UE,Huntingdonshire District Council,23/05/2013,125468,138,Optimus Consult Ltd,CR455181,One Leisure St Ives,Training - Operational,131
http://statistics.data.gov.uk/id/local-authority/12UE,Huntingdonshire District Council,30/05/2013,126247,641.62,Glaxosmithkline,CR010424,One Leisure St Ives,Vending Materials,560
http://statistics.data.gov.uk/id/local-authority/12UE,Huntingdonshire District Council,02/05/2013,125007,568.5,Glaxosmithkline,CR010424,One Leisure St Ives,Vending Materials,560
http://statistics.data.gov.uk/id/local-authority/12UE,Huntingdonshire District Council,09/05/2013,125489,137.66,Uk Point Of Sale Group Ltd,CR478991,One Leisure St Neots,Advertising/Promoting Services,255
http://statistics.data.gov.uk/id/local-authority/12UE,Huntingdonshire District Council,09/05/2013,126305,1888.42,Ecocleen Services Limited,CR406985,One Leisure St Neots,Building Cleaning Internal,440
http://statistics.data.gov.uk/id/local-authority/12UE,Huntingdonshire District Council,09/05/2013,126306,1888.42,Ecocleen Services Limited,CR406985,One Leisure St Neots,Building Cleaning Internal,440
http://statistics.data.gov.uk/id/local-authority/12UE,Huntingdonshire District Council,02/05/2013,124948,446.44,G4s Cashservices Uk Ltd,CR407133,One Leisure St Neots,Cash Collection,702
http://statistics.data.gov.uk/id/local-authority/12UE,Huntingdonshire District Council,30/05/2013,127207,446.44,G4s Cashservices Uk Ltd,CR407133,One Leisure St Neots,Cash Collection,702
http://statistics.data.gov.uk/id/local-authority/12UE,Huntingdonshire District Council,16/05/2013,125453,606,Brenntag Uk Ltd,CR015017,One Leisure St Neots,Chemicals,551
http://statistics.data.gov.uk/id/local-authority/12UE,Huntingdonshire District Council,02/05/2013,125538,437.03,Elecheck (Est) Ltd,CR480242,One Leisure St Neots,Electrical Testing,383
http://statistics.data.gov.uk/id/local-authority/12UE,Huntingdonshire District Council,30/05/2013,127545,1099.73,Anglian Water,CR000071,One Leisure St Neots,Electricity,420
http://statistics.data.gov.uk/id/local-authority/12UE,Huntingdonshire District Council,23/05/2013,127339,8113.68,E-On Energy,CR416430,One Leisure St Neots,Electricity,420
http://statistics.data.gov.uk/id/local-authority/12UE,Huntingdonshire District Council,09/05/2013,126365,7871.86,E-On Energy,CR416430,One Leisure St Neots,Electricity,420
http://statistics.data.gov.uk/id/local-authority/12UE,Huntingdonshire District Council,23/05/2013,127346,-7871.86,E-On Energy,CR416430,One Leisure St Neots,Electricity,420
http://statistics.data.gov.uk/id/local-authority/12UE,Huntingdonshire District Council,23/05/2013,125927,653.6,Escape Fitness,CR479121,One Leisure St Neots,Equipment Purchases,500
http://statistics.data.gov.uk/id/local-authority/12UE,Huntingdonshire District Council,16/05/2013,125452,1342.97,J P Lennard Ltd,CR028595,One Leisure St Neots,Equipment Purchases,500
http://statistics.data.gov.uk/id/local-authority/12UE,Huntingdonshire District Council,23/05/2013,126307,806.6,Parkhall Nurseries & Garden Centre,CR400499,One Leisure St Neots,Equipment Purchases,500
http://statistics.data.gov.uk/id/local-authority/12UE,Huntingdonshire District Council,02/05/2013,125451,4128,Technogym Uk Ltd,CR033037,One Leisure St Neots,Equipment Purchases,500
http://statistics.data.gov.uk/id/local-authority/12UE,Huntingdonshire District Council,16/05/2013,126608,3779.88,E-On Energy,CR416430,One Leisure St Neots,Gas,421
http://statistics.data.gov.uk/id/local-authority/12UE,Huntingdonshire District Council,16/05/2013,126609,523.02,E-On Energy,CR416430,One Leisure St Neots,Gas,421
http://statistics.data.gov.uk/id/local-authority/12UE,Huntingdonshire District Council,16/05/2013,125467,664.8,Roger Wilson Electronics,CR028041,One Leisure St Neots,Gen Building Mtce - Responsive,303
http://statistics.data.gov.uk/id/local-authority/12UE,Huntingdonshire District Council,09/05/2013,126304,900,Coaching Hq,CR453747,One Leisure St Neots,Instructors/Tutors,720
http://statistics.data.gov.uk/id/local-authority/12UE,Huntingdonshire District Council,30/05/2013,126915,2484,Gladstone Mrm,CR405717,One Leisure St Neots,Licences,730
http://statistics.data.gov.uk/id/local-authority/12UE,Huntingdonshire District Council,23/05/2013,125941,1076.09,Decleor Uk Ltd,CR480786,One Leisure St Neots,Materials,550
http://statistics.data.gov.uk/id/local-authority/12UE,Huntingdonshire District Council,02/05/2013,124603,1571.04,Ken Booth & Co,CR000305,One Leisure St Neots,Materials,550
http://statistics.data.gov.uk/id/local-authority/12UE,Huntingdonshire District Council,23/05/2013,125941,491.86,Decleor Uk Ltd,CR480786,One Leisure St Neots,Materials For Resale,570
http://statistics.data.gov.uk/id/local-authority/12UE,Huntingdonshire District Council,02/05/2013,125048,1550.01,Swimrite Suppliers Ltd (Srs Leisure),CR478711,One Leisure St Neots,Materials For Resale,570
http://statistics.data.gov.uk/id/local-authority/12UE,Huntingdonshire District Council,16/05/2013,125981,289.93,Vodafone Limited,CR029120,One Leisure St Neots,Mobile Telephones & Radios,241
http://statistics.data.gov.uk/id/local-authority/12UE,Huntingdonshire District Council,30/05/2013,126290,500.98,Konica Minolta Business Solutions East Ltd,CR478866,One Leisure St Neots,Other Office Equipment,209
http://statistics.data.gov.uk/id/local-authority/12UE,Huntingdonshire District Council,30/05/2013,126853,704.16,Jsa Leisure Ltd,CR40187,One Leisure St Neots,Plant & Equipment Maintenance,380
http://statistics.data.gov.uk/id/local-authority/12UE,Huntingdonshire District Council,16/05/2013,125472,880,Siemens Plc,CR407224,One Leisure St Neots,Plant & Equipment Maintenance,380
http://statistics.data.gov.uk/id/local-authority/12UE,Huntingdonshire District Council,16/05/2013,125471,713.4,Siemens Plc,CR407224,One Leisure St Neots,Plant & Equipment Maintenance,380
http://statistics.data.gov.uk/id/local-authority/12UE,Huntingdonshire District Council,16/05/2013,125484,421.2,Bigprinting,CR416383,One Leisure St Neots,Printing (External),220
http://statistics.data.gov.uk/id/local-authority/12UE,Huntingdonshire District Council,23/05/2013,125468,138,Optimus Consult Ltd,CR455181,One Leisure St Neots,Training - Operational,131
http://statistics.data.gov.uk/id/local-authority/12UE,Huntingdonshire District Council,23/05/2013,125916,547,Glaxosmithkline,CR010424,One Leisure St Neots,Vending Materials,560
http://statistics.data.gov.uk/id/local-authority/12UE,Huntingdonshire District Council,16/05/2013,125913,849.28,Snackline Direct Ltd,CR478090,One Leisure St Neots,Vending Materials,560
http://statistics.data.gov.uk/id/local-authority/12UE,Huntingdonshire District Council,02/05/2013,125912,705.55,Snackline Direct Ltd,CR478090,One Leisure St Neots,Vending Materials,560
http://statistics.data.gov.uk/id/local-authority/12UE,Huntingdonshire District Council,16/05/2013,125981,1363.81,Vodafone Limited,CR029120,Operations Mgt Units,Mobile Telephones & Radios,241
http://statistics.data.gov.uk/id/local-authority/12UE,Huntingdonshire District Council,16/05/2013,122903,8205.01,Idox Information Solutions Ltd,CR481134,Operations Mgt Units,Software,206
http://statistics.data.gov.uk/id/local-authority/12UE,Huntingdonshire District Council,02/05/2013,125538,4.54,Elecheck (Est) Ltd,CR480242,Parks & Open Spaces,Electrical Testing,383
http://statistics.data.gov.uk/id/local-authority/12UE,Huntingdonshire District Council,02/05/2013,125751,748.4,Swalec,CR407130,Parks & Open Spaces,Electricity,420
http://statistics.data.gov.uk/id/local-authority/12UE,Huntingdonshire District Council,02/05/2013,124999,657.6,Peterborough Engraving,CR000620,Parks & Open Spaces,Signs,565
http://statistics.data.gov.uk/id/local-authority/12UE,Huntingdonshire District Council,02/05/2013,123939,3003.11,J Breheny Contractors Ltd,CR000314,Parks & Open Spaces,Sitework,359
http://statistics.data.gov.uk/id/local-authority/12UE,Huntingdonshire District Council,02/05/2013,123933,796.26,J Breheny Contractors Ltd,CR000314,Parks & Open Spaces,Sitework,359
http://statistics.data.gov.uk/id/local-authority/12UE,Huntingdonshire District Council,16/05/2013,126144,3900,Lattenbury Services,CR406847,Parks & Open Spaces,Sitework,359
http://statistics.data.gov.uk/id/local-authority/12UE,Huntingdonshire District Council,16/05/2013,126346,2146.93,Ecocleen Services Limited,CR406985,Pathfinder House Site,Building Cleaning Internal,440
http://statistics.data.gov.uk/id/local-authority/12UE,Huntingdonshire District Council,09/05/2013,125061,720.82,Maskearaid Ind Supplies,CR033423,Pathfinder House Site,Cleaning Materials,443
http://statistics.data.gov.uk/id/local-authority/12UE,Huntingdonshire District Council,23/05/2013,127340,9240.89,E-On Energy,CR416430,Pathfinder House Site,Electricity,420
http://statistics.data.gov.uk/id/local-authority/12UE,Huntingdonshire District Council,09/05/2013,126366,8555.42,E-On Energy,CR416430,Pathfinder House Site,Electricity,420
http://statistics.data.gov.uk/id/local-authority/12UE,Huntingdonshire District Council,30/05/2013,126587,1411.2,Flora Tec Ltd,CR028191,Pathfinder House Site,Electricity,420
http://statistics.data.gov.uk/id/local-authority/12UE,Huntingdonshire District Council,16/05/2013,126616,2373.7,E-On Energy,CR416430,Pathfinder House Site,Gas,421
http://statistics.data.gov.uk/id/local-authority/12UE,Huntingdonshire District Council,30/05/2013,127118,808.32,Dal-Rod (Camridgeshire),CR413675,Pathfinder House Site,Gen Building Mtce - Responsive,303
http://statistics.data.gov.uk/id/local-authority/12UE,Huntingdonshire District Council,16/05/2013,125981,26.47,Vodafone Limited,CR029120,Pathfinder House Site,Mobile Telephones & Radios,241
http://statistics.data.gov.uk/id/local-authority/12UE,Huntingdonshire District Council,09/05/2013,124879,1202.58,Kone Lifts Ltd,CR000483,Pathfinder House Site,Plant & Equipment Maintenance,380
http://statistics.data.gov.uk/id/local-authority/12UE,Huntingdonshire District Council,09/05/2013,125979,3864,Ecocleen Services Limited,CR406985,Pathfinder House Site,Window Cleaning,442
http://statistics.data.gov.uk/id/local-authority/12UE,Huntingdonshire District Council,16/05/2013,126219,38280,Cambridgeshire County Council,CR017440,Payroll,Financial Services,772
http://statistics.data.gov.uk/id/local-authority/12UE,Huntingdonshire District Council,16/05/2013,125981,42.2,Vodafone Limited,CR029120,Pest Control,Mobile Telephones & Radios,241
http://statistics.data.gov.uk/id/local-authority/12UE,Huntingdonshire District Council,16/05/2013,125981,712.5,Vodafone Limited,CR029120,Planning M U'S,Mobile Telephones & Radios,241
http://statistics.data.gov.uk/id/local-authority/12UE,Huntingdonshire District Council,16/05/2013,122903,35467.39,Idox Information Solutions Ltd,CR481134,Planning M U'S,Software,206
http://statistics.data.gov.uk/id/local-authority/12UE,Huntingdonshire District Council,02/05/2013,123831,1928.25,Cambridgeshire Acre,CR025674,Project Contributions,Grants (Paid Out),800
http://statistics.data.gov.uk/id/local-authority/12UE,Huntingdonshire District Council,09/05/2013,125531,25726.31,Aecom,CR478307,Property Development And Mgt,Consultants,711
http://statistics.data.gov.uk/id/local-authority/12UE,Huntingdonshire District Council,02/05/2013,125071,2415.6,Media 4 Digital It Services,CR482579,Public Accountability,Equipment Maintenance,511
http://statistics.data.gov.uk/id/local-authority/12UE,Huntingdonshire District Council,23/05/2013,125973,3893.4,The Newspaper Licencing Agency Limited,CR478851,Public Accountability,Licences,730
http://statistics.data.gov.uk/id/local-authority/12UE,Huntingdonshire District Council,16/05/2013,126345,1027,Ecocleen Services Limited,CR406985,Public Conveniences,Building Cleaning Internal,440
http://statistics.data.gov.uk/id/local-authority/12UE,Huntingdonshire District Council,16/05/2013,126344,658.1,Ecocleen Services Limited,CR406985,Public Conveniences,Building Cleaning Internal,440
http://statistics.data.gov.uk/id/local-authority/12UE,Huntingdonshire District Council,02/05/2013,124357,1038,Beebys Limited,CR415822,Public Conveniences,Gen Building Mtce - Planned,304
http://statistics.data.gov.uk/id/local-authority/12UE,Huntingdonshire District Council,16/05/2013,125848,3213.52,Staffline Group,CR416827,Recycling,Hired Staff,100
http://statistics.data.gov.uk/id/local-authority/12UE,Huntingdonshire District Council,30/05/2013,127290,2522.63,Staffline Group,CR416827,Recycling,Hired Staff,100
http://statistics.data.gov.uk/id/local-authority/12UE,Huntingdonshire District Council,02/05/2013,125021,2308.13,Staffline Group,CR416827,Recycling,Hired Staff,100
http://statistics.data.gov.uk/id/local-authority/12UE,Huntingdonshire District Council,23/05/2013,127175,1902.65,Staffline Group,CR416827,Recycling,Hired Staff,100
http://statistics.data.gov.uk/id/local-authority/12UE,Huntingdonshire District Council,09/05/2013,125784,1734.32,Staffline Group,CR416827,Recycling,Hired Staff,100
http://statistics.data.gov.uk/id/local-authority/12UE,Huntingdonshire District Council,09/05/2013,124925,2378.62,Viridor Waste Management Ltd,CR482408,Recycling,Recycling Collections,747
http://statistics.data.gov.uk/id/local-authority/12UE,Huntingdonshire District Council,23/05/2013,127165,123,M & N Vehicle Services,CR480661,Recycling,Vehicle Mot,622
http://statistics.data.gov.uk/id/local-authority/12UE,Huntingdonshire District Council,16/05/2013,126793,738,V.O.S.A,CR409350,Recycling,Vehicle Mot,622
http://statistics.data.gov.uk/id/local-authority/12UE,Huntingdonshire District Council,23/05/2013,127165,1826.4,M & N Vehicle Services,CR480661,Recycling,Vehicle Parts & Fittings,625
http://statistics.data.gov.uk/id/local-authority/12UE,Huntingdonshire District Council,30/05/2013,126342,2280,Advanced Business Solutions,CR032921,Recycling Equipment Capital,Consultants,711
http://statistics.data.gov.uk/id/local-authority/12UE,Huntingdonshire District Council,28/05/2013,127635,852,Premier Property Lawyers,CR455739,Renovation/Improvement Grants,Grants (Paid Out),800
http://statistics.data.gov.uk/id/local-authority/12UE,Huntingdonshire District Council,28/05/2013,127636,8572,Quality Solicitors Fjg,CR455738,Renovation/Improvement Grants,Grants (Paid Out),800
http://statistics.data.gov.uk/id/local-authority/12UE,Huntingdonshire District Council,02/05/2013,124476,6000,Callcredit Ltd,CR455548,Revenue Services Mus,Enquiries,723
http://statistics.data.gov.uk/id/local-authority/12UE,Huntingdonshire District Council,30/05/2013,127666,1305.6,Morgan Hunt Public Uk Ltd,CR415693,Revenue Services Mus,Hired Staff,100
http://statistics.data.gov.uk/id/local-authority/12UE,Huntingdonshire District Council,16/05/2013,126568,1056,Morgan Hunt Public Uk Ltd,CR415693,Revenue Services Mus,Hired Staff,100
http://statistics.data.gov.uk/id/local-authority/12UE,Huntingdonshire District Council,09/05/2013,126254,1044,Morgan Hunt Public Uk Ltd,CR415693,Revenue Services Mus,Hired Staff,100
http://statistics.data.gov.uk/id/local-authority/12UE,Huntingdonshire District Council,30/05/2013,127655,1008,Morgan Hunt Public Uk Ltd,CR415693,Revenue Services Mus,Hired Staff,100
http://statistics.data.gov.uk/id/local-authority/12UE,Huntingdonshire District Council,02/05/2013,125735,964.8,Morgan Hunt Public Uk Ltd,CR415693,Revenue Services Mus,Hired Staff,100
http://statistics.data.gov.uk/id/local-authority/12UE,Huntingdonshire District Council,16/05/2013,126571,964.8,Morgan Hunt Public Uk Ltd,CR415693,Revenue Services Mus,Hired Staff,100
http://statistics.data.gov.uk/id/local-authority/12UE,Huntingdonshire District Council,23/05/2013,126877,928.8,Morgan Hunt Public Uk Ltd,CR415693,Revenue Services Mus,Hired Staff,100
http://statistics.data.gov.uk/id/local-authority/12UE,Huntingdonshire District Council,02/05/2013,125734,883.2,Morgan Hunt Public Uk Ltd,CR415693,Revenue Services Mus,Hired Staff,100
http://statistics.data.gov.uk/id/local-authority/12UE,Huntingdonshire District Council,23/05/2013,126876,806.4,Morgan Hunt Public Uk Ltd,CR415693,Revenue Services Mus,Hired Staff,100
http://statistics.data.gov.uk/id/local-authority/12UE,Huntingdonshire District Council,09/05/2013,126155,614.4,Morgan Hunt Public Uk Ltd,CR415693,Revenue Services Mus,Hired Staff,100
http://statistics.data.gov.uk/id/local-authority/12UE,Huntingdonshire District Council,30/05/2013,127656,1323.52,Venn Group Recruitment,CR415403,Revenue Services Mus,Hired Staff,100
http://statistics.data.gov.uk/id/local-authority/12UE,Huntingdonshire District Council,30/05/2013,126154,1247.64,Venn Group Recruitment,CR415403,Revenue Services Mus,Hired Staff,100
http://statistics.data.gov.uk/id/local-authority/12UE,Huntingdonshire District Council,16/05/2013,126872,1247.64,Venn Group Recruitment,CR415403,Revenue Services Mus,Hired Staff,100
http://statistics.data.gov.uk/id/local-authority/12UE,Huntingdonshire District Council,23/05/2013,125736,1247.3,Venn Group Recruitment,CR415403,Revenue Services Mus,Hired Staff,100
http://statistics.data.gov.uk/id/local-authority/12UE,Huntingdonshire District Council,16/05/2013,125294,1244.6,Venn Group Recruitment,CR415403,Revenue Services Mus,Hired Staff,100
http://statistics.data.gov.uk/id/local-authority/12UE,Huntingdonshire District Council,02/05/2013,124470,1242.24,Venn Group Recruitment,CR415403,Revenue Services Mus,Hired Staff,100
http://statistics.data.gov.uk/id/local-authority/12UE,Huntingdonshire District Council,02/05/2013,124479,977.88,Venn Group Recruitment,CR415403,Revenue Services Mus,Hired Staff,100
http://statistics.data.gov.uk/id/local-authority/12UE,Huntingdonshire District Council,23/05/2013,126271,669.6,Callcredit Ltd,CR455548,Revenue Services Mus,Legal Fees,729
http://statistics.data.gov.uk/id/local-authority/12UE,Huntingdonshire District Council,02/05/2013,123945,1069.44,Sarfo Solicitors,CR415973,Revenue Services Mus,Legal Fees,729
http://statistics.data.gov.uk/id/local-authority/12UE,Huntingdonshire District Council,16/05/2013,125981,723.66,Vodafone Limited,CR029120,Revenue Services Mus,Mobile Telephones & Radios,241
http://statistics.data.gov.uk/id/local-authority/12UE,Huntingdonshire District Council,23/05/2013,125774,804.6,Royal Mail,CR027083,Revenue Services Mus,Postage,231
http://statistics.data.gov.uk/id/local-authority/12UE,Huntingdonshire District Council,30/05/2013,126642,3386.83,T N T Post London Ltd,CR479965,Revenue Services Mus,Postage,231
http://statistics.data.gov.uk/id/local-authority/12UE,Huntingdonshire District Council,02/05/2013,124366,2105.76,T N T Post London Ltd,CR479965,Revenue Services Mus,Postage,231
http://statistics.data.gov.uk/id/local-authority/12UE,Huntingdonshire District Council,23/05/2013,125775,453.43,T N T Post London Ltd,CR479965,Revenue Services Mus,Postage,231
http://statistics.data.gov.uk/id/local-authority/12UE,Huntingdonshire District Council,16/05/2013,125855,718.78,Amalgamated Computer Supplies,CR480830,Revenue Services Mus,Stationery,225
http://statistics.data.gov.uk/id/local-authority/12UE,Huntingdonshire District Council,09/05/2013,124882,1672.03,Khipu Networks Ltd,CR482348,Software Capital,Network Hardware,205
http://statistics.data.gov.uk/id/local-authority/12UE,Huntingdonshire District Council,16/05/2013,126788,1182.9,Capita,CR481146,Software Capital,Software,206
http://statistics.data.gov.uk/id/local-authority/12UE,Huntingdonshire District Council,09/05/2013,125783,1050.5,Staffline Group,CR416827,Street Cleaning,Hired Staff,100
http://statistics.data.gov.uk/id/local-authority/12UE,Huntingdonshire District Council,16/05/2013,125851,1050.5,Staffline Group,CR416827,Street Cleaning,Hired Staff,100
http://statistics.data.gov.uk/id/local-authority/12UE,Huntingdonshire District Council,23/05/2013,127171,1050.5,Staffline Group,CR416827,Street Cleaning,Hired Staff,100
http://statistics.data.gov.uk/id/local-authority/12UE,Huntingdonshire District Council,30/05/2013,127293,967.98,Staffline Group,CR416827,Street Cleaning,Hired Staff,100
http://statistics.data.gov.uk/id/local-authority/12UE,Huntingdonshire District Council,30/05/2013,127300,959.5,Staffline Group,CR416827,Street Cleaning,Hired Staff,100
http://statistics.data.gov.uk/id/local-authority/12UE,Huntingdonshire District Council,02/05/2013,125020,837.58,Staffline Group,CR416827,Street Cleaning,Hired Staff,100
http://statistics.data.gov.uk/id/local-authority/12UE,Huntingdonshire District Council,02/05/2013,124040,6667.62,Breheny Contractors Ltd,CR027653,Street Cleaning,Litter Bins,520
http://statistics.data.gov.uk/id/local-authority/12UE,Huntingdonshire District Council,09/05/2013,125797,1814.4,Broxap Ltd,CR415958,Street Cleaning,Litter Bins,520
http://statistics.data.gov.uk/id/local-authority/12UE,Huntingdonshire District Council,30/05/2013,126375,32.1,Bandvulc Tyres Ltd,CR406810,Street Cleaning,Tyres,630
http://statistics.data.gov.uk/id/local-authority/12UE,Huntingdonshire District Council,09/05/2013,124846,672,Ians Tyre And Exhaust Centre,CR405836,Street Cleaning,Tyres,630
http://statistics.data.gov.uk/id/local-authority/12UE,Huntingdonshire District Council,16/05/2013,126793,392,V.O.S.A,CR409350,Street Cleaning,Vehicle Mot,622
http://statistics.data.gov.uk/id/local-authority/12UE,Huntingdonshire District Council,09/05/2013,124955,1240.93,Johnston Engineering Ltd,CR029831,Street Cleaning,Vehicle Parts & Fittings,625
http://statistics.data.gov.uk/id/local-authority/12UE,Huntingdonshire District Council,02/05/2013,124860,1194.72,Johnston Engineering Ltd,CR029831,Street Cleaning,Vehicle Parts & Fittings,625
http://statistics.data.gov.uk/id/local-authority/12UE,Huntingdonshire District Council,16/05/2013,125981,-2.83,Vodafone Limited,CR029120,Street Naming,Mobile Telephones & Radios,241
http://statistics.data.gov.uk/id/local-authority/12UE,Huntingdonshire District Council,09/05/2013,124875,3132.56,J Breheny Contractors Ltd,CR000314,Street Naming,Signs Erecting & Removal,361
http://statistics.data.gov.uk/id/local-authority/12UE,Huntingdonshire District Council,09/05/2013,124868,2544.43,J Breheny Contractors Ltd,CR000314,Street Naming,Signs Erecting & Removal,361
http://statistics.data.gov.uk/id/local-authority/12UE,Huntingdonshire District Council,09/05/2013,124967,959.65,Cambridgeshire County Council,CR006678,Trade Refuse,Waste Disposal,763
http://statistics.data.gov.uk/id/local-authority/12UE,Huntingdonshire District Council,16/05/2013,125981,10.3,Vodafone Limited,CR029120,Transportation Mgt,Mobile Telephones & Radios,241
http://statistics.data.gov.uk/id/local-authority/12UE,Huntingdonshire District Council,23/05/2013,127133,138466.8,Thurlow Nunn Standen Ltd,CR001534,Vehicles & Plant Capital,Vehicles Purchased,600
http://statistics.data.gov.uk/id/local-authority/12UE,Huntingdonshire District Council,02/05/2013,123943,1288,J Breheny Contractors Ltd,CR000314,Watercourses,Sitework,359
http://statistics.data.gov.uk/id/local-authority/12UE,Huntingdonshire District Council,16/05/2013,126144,3900,Lattenbury Services,CR406847,Watercourses,Sitework,359
http://statistics.data.gov.uk/id/local-authority/12UE,Huntingdonshire District Council,23/05/2013,126168,5100,Lattenbury Services,CR406847,Watercourses,Sitework,359
